Cogmind - Beta 15 @@@ ROGUE MODE // 2025.05.10 @ 20:48:58 Player: szymekc Result: Destroyed by Executioner with Helical Railgun Performance ------------- Evolutions (8) 4000 Regions Visited (26) 5200 Robots Destroyed (326) 1630 Value Destroyed (13088) 13088 Prototype IDs (162) 3240 Alien Tech Used (0) 0 Bonus (7166) 7166 TOTAL SCORE: 34324 Bonus ------- High Alert Combat Kills 1200 Follower Combat Kills 1416 Entered Garrisons 200 Network Hubs Disabled 200 Registered with UFD 300 Met Optimus in HQ 500 Built Enhanced Grunts 300 Met R17 at Research 2000 Scanned by Researcher 500 Met Optimus at Protoforge 1000 Friendly Fire -450 Cogmind --------- Core Integrity 0/1450 Matter 300/300 Energy 25/100 System Corruption 17% Temperature Cool (0) Movement Walking (170) Ox1 Location -2/Protoforge Parts ------- > --- POWER (2) -------- (None) > --- PROPULSION (7) --- Experimental Biometal Leg Experimental VSS Leg Experimental VSS Leg Experimental VSS Leg Experimental VSS Leg > --- UTILITY (12) ----- Experimental Heat Sink Spectral Analyzer Experimental Core Analyzer Experimental Core Analyzer Experimental Armor Integrity Analyzer Experimental Kinecellerator Experimental Cloaking Device Centrium Light Armor Plating Heavy Regenerative Plating > --- WEAPON (2) ------- Potential Cannon > --- INVENTORY (5) ---- Experimental Surge Thruster Advanced Gravity Neutralizer Crosscalibrator Concept XC Strikerail Concept XC Strikerail Peak State ------------ > --- POWER ------------ Improved Quantum Reactor Improved Quantum Reactor > --- PROPULSION ------- Biometal Leg Experimental Biometal Leg Experimental Biometal Leg Experimental VSS Leg Experimental VSS Leg Experimental Surge Thruster > --- UTILITY ---------- Experimental Coolant Injector Advanced Gravity Neutralizer Spectral Analyzer Experimental Target Analyzer Experimental Core Analyzer Experimental Core Analyzer Experimental Armor Integrity Analyzer Experimental Kinecellerator Experimental Reaction Control System Experimental Cloaking Device Heavy Regenerative Plating > --- WEAPON ----------- Concept XC Strikerail Concept XC Strikerail > --- INVENTORY -------- Experimental Heat Sink Advanced Transmission Jammer Crosscalibrator Potential Cannon [Rating: 219] Favorites ----------- Power Ion Engine Engine Ion Engine Power Core Nuclear Core Reactor Improved Quantum Reactor Propulsion Light Treads Treads Light Treads Leg High-density Centrium Leg Wheel Compact Wheel Hover Unit Antigrav Array Flight Unit Improved Diametric Drive Utility Medium Storage Unit Device Advanced Sensor Array Storage Medium Storage Unit Processor Advanced Melee Analysis Suite Hackware Hacking Suite Protection Active Cooling Armor Weapon Enhanced Autogun Energy Gun Medium Laser Energy Cannon Subdweller Beam Cannon Ballistic Gun Enhanced Autogun Ballistic Cannon Improved Light Cannon Launcher Advanced EMP Blaster Special Weapon CPS Tube Impact Weapon Impact Mace Slashing Weapon Makeshift Axe Piercing Weapon Plasma Lance Special Melee Weapon Improved Datajack Build | -11 -10 -10 -10 -9 -8 -8 -8 -7 -7 -7 -7 -7 -7 -5 -5 -5 -5 -5 -4 -4 -4 -3 -3 -2 -2 -2 ------- Run | Yrd Mat Min Exi Min Mat Gar Mat Fac Was Fac Sto Rec Scr Fac Ext Cet Arc Hub Fac Was Fac Res Qua Res Tes Frg Slots Evolved 16 | . . . . . 4 . . 2 . . . . . 4 . . . . 2 . . 2 . 2 . . Power 1 | . . . . . . . . . . . . . . 1 . . . . . . . . . . . . Propulsion 5 | . . . . . 2 . . 1 . . . . . 1 . . . . 1 . . . . . . . Utility 10 | . . . . . 2 . . 1 . . . . . 2 . . . . 1 . . 2 . 2 . . Weapon . | . . . . . . . . . . . . . . . . . . . . . . . . . . . Parts Attached 304 | 6 11 . 1 1 3 10 28 37 2 8 . 2 7 31 11 14 7 1 9 2 3 50 4 5 10 41 Power 35 | 1 1 . 1 . . . 1 4 . 2 . . . 2 4 2 . . . 1 1 5 . 1 3 6 Engine 7 | 1 1 . . . . . 1 1 . 1 . . . 1 1 . . . . . . . . . . . Core 11 | . . . 1 . . . . 3 . 1 . . . 1 3 . . . . . . 1 . . 1 . Reactor 17 | . . . . . . . . . . . . . . . . 2 . . . 1 1 4 . 1 2 6 Propulsion 93 | 2 3 . . . 1 4 17 7 . 4 . . 1 10 3 3 3 1 4 . 1 15 1 1 . 12 Treads 25 | 2 2 . . . 1 4 14 . . . . . . . . 1 . . . . . 1 . . . . Leg 14 | . 1 . . . . . . 1 . . . . . 4 . . . . . . . 1 . . . 7 Wheel 6 | . . . . . . . . . . . . . . . 3 . . . . . . 3 . . . . Hover 11 | . . . . . . . 1 . . . . . . . . 2 3 1 3 . . 1 . . . . Flight 37 | . . . . . . . 2 6 . 4 . . 1 6 . . . . 1 . 1 9 1 1 . 5 Utility 111 | 1 4 . . . . 3 4 16 1 2 . 1 4 7 1 7 4 . 3 1 1 23 1 3 5 19 Device 54 | 1 3 . . . . 2 1 9 1 1 . . 1 4 1 2 4 . 1 1 . 8 . 2 2 10 Storage 11 | . 1 . . . . 1 1 1 . . . . 1 . . 1 . . . . . 2 . . 1 2 Processor 28 | . . . . . . . 2 4 . . . . 1 2 . . . . 2 . . 10 1 1 1 4 Hackware 12 | . . . . . . . . 2 . 1 . 1 1 . . 2 . . . . 1 3 . . 1 . Protection 6 | . . . . . . . . . . . . . . 1 . 2 . . . . . . . . . 3 Artifact . | . . . . . . . . . . . . . . . . . . . . . . . . . . . Weapon 65 | 2 3 . . 1 2 3 6 10 1 . . 1 2 12 3 2 . . 2 . . 7 2 . 2 4 Energy Gun 6 | 1 1 . . . 1 . 1 . . . . . . 2 . . . . . . . . . . . . Energy Cannon 11 | . 1 . . . . 1 . 4 . . . . . . . . . . 1 . . 1 2 . . 1 Ballistic Gun 11 | 1 . . . . . . 4 1 . . . . . . . 2 . . . . . . . . 1 2 Ballistic Cannon 7 | . 1 . . 1 . 1 . . . . . . . 2 2 . . . . . . . . . . . Launcher 12 | . . . . . 1 1 1 2 1 . . . . 4 1 . . . . . . . . . 1 . Special Weapon 2 | . . . . . . . . . . . . . 1 1 . . . . . . . . . . . . Impact Weapon 5 | . . . . . . . . 1 . . . 1 . . . . . . 1 . . 2 . . . . Slashing Weapon 5 | . . . . . . . . 1 . . . . 1 2 . . . . . . . . . . . 1 Piercing Weapon 2 | . . . . . . . . . . . . . . . . . . . . . . 2 . . . . Special Melee Weapon 4 | . . . . . . . . 1 . . . . . 1 . . . . . . . 2 . . . . Unidentified Prototypes 69 | . . . . . . . 6 12 1 2 . . . 10 1 6 . . 1 . . 7 2 2 5 14 Corrupted Parts 2 | . . . . . . . . . . . . . . . . 1 . . . 1 . . . . . . System Corruption 7 | . . . . . . . . . . . . . . . . 2 . . . 5 . . . . . . Parts Lost 73 | . 6 . . . . 4 2 2 . . . 1 . 10 1 . . 9 . 1 12 2 . . 3 20 Power 10 | . 1 . . . . . . . . . . . . 1 . . . 1 . 1 2 . . . 1 3 Propulsion 29 | . 2 . . . . 2 . . . . . 1 . 7 . . . 5 . . 2 1 . . . 9 Utility 23 | . 2 . . . . 1 . 2 . . . . . 1 1 . . 1 . . 5 1 . . 1 8 Weapon 11 | . 1 . . . . 1 2 . . . . . . 1 . . . 2 . . 3 . . . 1 . Highest Loss Streak 6 | . 2 . . . . 2 1 1 . . . 1 . 3 1 . . 6 . 1 4 1 . . 1 5 To Critical Strikes 3 | . . . . . . . . . . . . . . 2 . . . . . . . . . . . 1 Average Backups 10 | . 7 12 14 14 14 18 21 9 8 7 8 8 7 7 9 9 9 8 4 4 3 6 8 8 8 5 Power . | . 1 2 1 1 1 1 1 . . . . . . . . . . . . . . . . 1 . . Propulsion 1 | . . 1 1 1 . 4 5 . 1 1 1 . . . . . . . . . . . 1 1 . . Utility 4 | . 2 5 5 7 7 6 7 4 4 3 4 4 4 3 2 2 2 2 1 1 1 3 5 3 3 2 Weapon 3 | . 1 4 6 5 6 7 6 3 3 2 3 3 3 2 5 6 5 4 2 3 2 1 1 1 2 1 Tool/Special . | . . . . . . . . . . . . . . . . . . . . . . . . . . . Unused Backups 41 | . 1 . 2 . . . 7 14 . . . . 1 5 . . . 2 . . . 3 1 1 2 2 Power 4 | . . . 1 . . . . . . . . . . . . . . . . . . 1 . 1 1 . Propulsion 3 | . 1 . . . . . 1 . . . . . . . . . . . . . . . . . 1 . Utility 18 | . . . 1 . . . 2 8 . . . . . 2 . . . 2 . . . 2 1 . . . Weapon 12 | . . . . . . . 4 5 . . . . . 3 . . . . . . . . . . . . Tool/Special 4 | . . . . . . . . 1 . . . . 1 . . . . . . . . . . . . 2 Average Slot Usage (%) 89 | . 93 100 100 100 72 93 99 98 100 99 100 86 94 91 73 82 84 79 44 64 32 68 95 94 92 83 Engine 3 | . 14 14 5 . . . 8 . . . . . . . 3 . . . . . 1 . . . . . Core 4 | . . . 8 14 9 9 . 7 7 6 7 7 7 9 6 5 . . . . . 1 4 4 2 . Reactor 1 | . . . . . . . . . . . . . . . . 5 11 8 . 2 . 4 4 4 5 6 Treads 13 | . 25 28 28 28 27 35 35 . . . . . . . . 3 . . . . . . . . . . Leg 2 | . . . . . . . . . . . . . . 1 17 12 . . . . . . . . . 12 Hover 1 | . . . . . . . . . . . . . . . . 2 19 21 7 12 . 1 . . . . Flight 11 | . . . . . . . . 37 38 38 38 33 37 28 . . . . 4 5 2 16 28 26 25 11 Device 11 | . 15 14 14 14 9 21 9 6 15 12 15 8 2 10 2 5 13 8 7 12 6 8 14 17 18 17 Storage 6 | . 8 14 14 14 9 9 9 6 7 7 7 7 7 5 5 5 5 4 . . . 2 4 4 4 1 Processor 10 | . . . . . . . 17 8 7 7 7 7 6 14 11 11 11 11 15 17 13 17 23 25 22 20 Hackware 3 | . . . . . . . . 14 7 9 7 10 19 6 . 1 5 5 5 5 2 4 4 4 5 1 Energy Gun 1 | . 4 14 14 . . . . . . . . . . . 2 . . 3 . . . . . . . . Energy Cannon 3 | . 4 14 14 14 9 3 2 . . . . . . 1 2 1 . . 2 5 . . . . . . Ballistic Gun 4 | . 10 . . . . . 13 6 . . . . . . . 9 11 6 . . . . . . 2 4 Ballistic Cannon 2 | . 7 . . 13 9 14 . . . . . . . . 5 . . . . . . . . . . . Impact Weapon 1 | . . . . . . . . 6 7 7 7 6 2 . . . . . . . 2 1 4 4 . . Peak Build Rating 219 | 6 12 11 12 14 14 24 41 59 57 57 58 58 59 118 119 134 129 117 90 106 80 148 155 169 188 219 Average Rating 65 | 4 8 10 11 13 14 21 35 47 54 55 56 48 51 92 108 123 115 107 62 93 40 92 150 166 175 185 On Entrance 65 | . 6 10 11 12 14 14 23 41 54 54 56 56 43 59 100 119 129 115 22 85 74 17 148 155 165 176 Naked Turns . | . . . . . . . . . . . . . . . . . . . . . . . . . . . Heaviest Build 105 | 9 36 36 38 40 40 62 99 26 23 26 24 24 26 68 98 105 61 61 14 35 12 63 42 44 64 81 Greatest Support 188 | 40 40 40 40 40 60 80 84 26 26 27 26 26 26 116 64 68 86 72 19 38 19 60 48 51 64 188 Greatest Overweight (x) 24 | . . . . . . . 1 . . . . . . 1 5 5 . 1 3 1 3 3 . . 1 24 Average Overweight (x) . | . . . . . . . . . . . . . . . 1 . . . . . . . . . . . Largest Inventory Capacity 25 | 5 15 15 15 15 15 20 25 25 10 10 10 10 10 10 10 10 10 10 5 5 5 20 10 10 10 10 Average Capacity 12 | 5 11 15 15 15 15 19 22 9 10 10 10 10 10 10 10 10 10 9 5 5 5 9 10 10 10 6 Most Carried 25 | . 12 15 15 15 14 20 25 25 10 10 10 10 10 10 10 10 10 10 5 5 5 10 10 10 10 10 Average Carried 11 | . 7 12 14 14 14 18 21 9 10 9 10 9 9 9 9 10 9 9 4 4 3 6 9 9 9 6 Final Capacity 25 | 5 15 15 15 15 15 20 25 10 10 10 10 10 10 10 10 10 10 5 5 5 5 10 10 10 10 5 Final Carried 25 | . 11 15 15 15 14 19 25 10 10 10 10 10 10 10 10 10 10 5 5 4 4 9 10 10 10 5 Class Distribution -------------------- 41% | Mutant 20% | Scavenger-Mutant 10% | Scout 10% | Hacker-Sprinter 5% | Sprinter 3% | Hacker-Scout Dominant Class ---------------- Mutant | -10/Materials Mutant | -10/Mines Mutant | -10/Exiles Mutant | -9/Mines Mutant | -8/Materials Scavenger-Mutant | -8/Garrison Mutant | -8/Materials Hacker-Sprinter | -7/Factory Sprinter | -7/Waste Sprinter | -7/Factory Commander-Sprinter | -7/Storage Sprinter | -7/Recycling Hacker-Sprinter | -7/Scraptown Scout | -5/Factory Mutant | -5/Extension Scavenger-Mutant | -5/Cetus Scavenger-Mutant | -5/Archives Scavenger-Mutant | -5/Hub_04(d) Scout | -4/Factory Scout | -4/Waste Mutant | -4/Factory Mutant | -3/Research Scout | -3/Quarantine Scout | -2/Research Hacker-Ninja | -2/Testing Scavenger-Mutant | -2/Protoforge Resources | -11 -10 -10 -10 -9 -8 -8 -8 -7 -7 -7 -7 -7 -7 -5 -5 -5 -5 -5 -4 -4 -4 -3 -3 -2 -2 -2 ----------- Run | Yrd Mat Min Exi Min Mat Gar Mat Fac Was Fac Sto Rec Scr Fac Ext Cet Arc Hub Fac Was Fac Res Qua Res Tes Frg Matter Collected 10018 | 289 446 26 20 10 69 784 1173 827 . 198 20 30 30 650 835 344 558 316 20 . 11 930 50 78 447 1857 Remotely . | . . . . . . . . . . . . . . . . . . . . . . . . . . . Salvage Created 14266 | 233 826 9 . . 124 551 2244 1473 . 289 79 186 . 822 885 464 421 454 . . 43 1180 282 108 908 2685 Parts 667 | 15 49 . . . 7 38 112 68 . 3 2 . . 40 37 17 33 21 . . 2 41 4 1 38 139 Haulers Intercepted 32 | . 2 . . . . . 6 9 . 2 2 . . 1 . . . . . . . 7 2 1 . . Recyclers Shooed 1 | . . . . . . . . . . . . 1 . . . . . . . . . . . . . . Parts Field Recycled 15 | . . . . . . . . . . . . . . . 13 2 . . . . . . . . . . Retrieved Matter 469 | . . . . . . . . . . . . . . . 212 257 . . . . . . . . . . Parts Self-Destructed . | . . . . . . . . . . . . . . . . . . . . . . . . . . . Prevented . | . . . . . . . . . . . . . . . . . . . . . . . . . . . Kills | -11 -10 -10 -10 -9 -8 -8 -8 -7 -7 -7 -7 -7 -7 -5 -5 -5 -5 -5 -4 -4 -4 -3 -3 -2 -2 -2 ------- Run | Yrd Mat Min Exi Min Mat Gar Mat Fac Was Fac Sto Rec Scr Fac Ext Cet Arc Hub Fac Was Fac Res Qua Res Tes Frg Combat Hostiles Destroyed 189 | . 21 . . . 3 24 32 20 . 1 . 1 . 13 13 6 . 4 . . 4 4 . . 4 39 Melee 7 | . . . . . . . . 2 . . . . . 2 . . . . . . . 1 . . 1 1 Guns 77 | . 5 . . . . . 17 1 . . . . . . 3 6 . 4 . . . . . . 3 38 Cannons 50 | . 15 . . . . 21 3 . . . . . . 2 9 . . . . . . . . . . . AOE 47 | . 1 . . . 3 3 11 14 . . . . . 9 . . . . . . 3 3 . . . . Classes Destroyed 25 | 3 4 . . . . 3 7 1 . . . . . . 1 . . . . . . . . . 2 4 Worker 26 | 1 . 1 . . . . 4 8 . . . . . 3 . . . 3 . . 1 2 . . 2 1 Builder 11 | . . . . . . . 1 5 . 1 . . . 1 2 . . 1 . . . . . . . . Tunneler 8 | 6 . . . . . . . . . . . . . 1 . . . 1 . . . . . . . . Hauler 32 | . 2 . . . . . 6 9 . 2 2 . . 1 . . . . . . . 7 2 1 . . Recycler 16 | 1 . . . . . . 3 3 . . . 1 . 2 1 . . . . . . 2 . . 3 . Mechanic 5 | . . . . . . . 1 2 . . . . . 1 . . . . . . . . . . . 1 Operator 14 | . 1 . . . . . . . . 1 . . . 2 . . 8 . . . . 1 1 . . . Drone 10 | . . . . . . . . . . . . . . . . . . . . . . . . . 1 9 Watcher 22 | . . . . . . . 4 4 . 4 . . . 2 . . . . . . . 1 2 . 1 4 Swarmer 25 | . 1 . . . . 12 3 . . . . . . . . . . . . . 4 3 . . . 2 Grunt 64 | . 20 . . . 3 6 14 4 . 1 . . . 6 4 . . . . . . . . . . 6 Brawler 6 | . . . . . . . 4 . . . . . . 1 1 . . . . . . . . . . . Duelist 1 | . . . . . . . 1 . . . . . . . . . . . . . . . . . . . Protector 1 | . . . . . . . . 1 . . . . . . . . . . . . . . . . . . Researcher 3 | . . . . . . . . . . . . . . . . . . . . . . . . . 3 . Sentry 24 | . . . . . . 4 5 2 . . . 1 . 1 4 . . 1 . . . 1 . . . 5 Specialist 5 | . . . . . . . 2 2 . . . . . . . . . . . . . . . . . 1 Hunter 13 | . . . . . . 1 2 4 . . . . . 3 . . . . . . . . . . 2 1 Programmer 18 | . . . . . . 1 . 7 . . . . . 2 2 . . 1 . . . . . . 1 4 Heavy 1 | . . . . . . . 1 . . . . . . . . . . . . . . . . . . . Behemoth 1 | . . . . . . . . . . . . . . . 1 . . . . . . . . . . . Cetus Guard 6 | . . . . . . . . . . . . . . . . 6 . . . . . . . . . . Enhanced Grunt 1 | . . . . . . . . . . . . . . . . . 1 . . . . . . . . . Lightning 2 | . . . . . . . . . . . . . . . . . . 2 . . . . . . . . Hotshot 4 | . . . . . . . . . . . . . . . . . . . . . . . . . . 4 Decapitator 2 | . . . . . . . . . . . . . . . . . . . . . . . . . . 2 Immortal 1 | . . . . . . . . . . . . . . . . . . . . . . . . . . 1 Striker 2 | . . . . . . . . . . . . . . . . . . . . . . . . . . 2 Executioner 1 | . . . . . . . . . . . . . . . . . . . . . . . . . . 1 Alpha 7 1 | . . . . . . . . . . . . . . . . . . . . . . . . . . 1 Savage 1 | . . . . . . . . . . . . . . . 1 . . . . . . . . . . . Best Kill Streak 14 | 2 4 1 . . 3 5 8 14 . 3 1 1 . 7 3 4 5 8 . . 4 4 2 1 6 13 Combat Bots Only 9 | . 4 . . . 3 5 8 7 . 1 . 1 . 7 3 4 . 1 . . 3 4 . . 3 9 Max Kills in Single Turn 6 | 1 1 1 . . 3 2 4 6 . 1 1 1 . 2 2 1 1 3 . . 2 3 1 1 2 2 Gunslinging 1 | . . . . . . . 1 . . . . . . . . . . 1 . . . . . . . 1 Exploded 4 | . 1 . . . 3 2 2 4 . . . . . 2 . . . . . . 2 3 . . . . Melee 1 | . . . . . . . . 1 . . . . . 1 . . . . . . . 1 . . 1 1 Uniques/NPCs Destroyed . | . . . . . . . . . . . . . . . . . . . . . . . . . . . Combat | -11 -10 -10 -10 -9 -8 -8 -8 -7 -7 -7 -7 -7 -7 -5 -5 -5 -5 -5 -4 -4 -4 -3 -3 -2 -2 -2 -------- Run | Yrd Mat Min Exi Min Mat Gar Mat Fac Was Fac Sto Rec Scr Fac Ext Cet Arc Hub Fac Was Fac Res Qua Res Tes Frg Hostile Shots Fired 1372 | . 85 6 . . 12 105 107 83 2 4 35 51 . 231 75 4 11 72 16 1 120 34 . 36 47 235 Missed 489 | . 23 3 . . 4 28 33 39 2 1 24 24 . 72 22 1 2 20 7 . 52 17 . 10 18 87 Hits 883 | . 62 3 . . 8 77 74 44 . 3 11 27 . 159 53 3 9 52 9 1 68 17 . 26 29 148 Melee 17 | . . . . . . . . . . . . . . . . . . . 2 1 . . . . . 14 Projectile 866 | . 62 3 . . 8 77 74 44 . 3 11 27 . 159 53 3 9 52 7 . 68 17 . 26 29 134 AOE 4 | . . . . . . . . . . . . . . . . . . 1 . . . . . 1 . 2 Critical Strikes 67 | . . . . . . 1 5 3 . . . . . 9 2 1 . 12 1 1 4 1 . 1 1 25 Actively Blocked 1 | . . . . . . . . . . . . . . . . . . . . . . . . . . 1 Part Disruptions 1 | . . . . . . . . . . . . . . . . . . . . . . . . . . 1 Damage Taken 19303 | . 818 22 . . 113 957 1289 625 . 45 91 212 . 3177 912 165 235 1868 209 49 1619 569 66 591 390 5281 Core 4087 | . 59 . . . . 189 173 92 . . 32 46 . 458 77 . 21 390 71 . 737 289 . 198 85 1170 Absorbed by Shields 450 | . . . . . . 84 . . . . . . . 38 259 13 . . . . . . . . 39 17 Redirected to Shielding 92 | . . . . . . . . . . . . . . . . . . . . . . . . . . 92 Regen/Repaired (Parts) 847 | . . . . . . . . . . . . . . . . 23 85 59 . 23 35 . . . . 622 Core Remaining (%) 56 | 100 . . . 76 . . 34 . . . . . 75 . . . . 5 . . 29 . 77 . . . Volleys Fired 775 | 29 73 3 . . 4 83 116 11 . 8 . 1 . 39 66 31 57 53 19 . 11 3 2 1 21 144 Largest 2 | 2 2 1 . . 2 2 2 2 . 1 . 1 . 2 2 2 2 2 1 . 1 1 1 1 1 2 Hottest 298 | 70 100 80 . . 113 113 91 50 . 30 . 30 . 298 116 70 70 80 105 . 105 113 113 113 113 200 Shots Fired 1141 | 58 115 3 . . 6 131 197 15 . 8 . 1 . 44 114 41 86 79 19 . 11 3 2 1 21 186 Gun 696 | 58 55 1 . . . 8 156 8 . . . . . 7 16 39 86 79 5 . . . . . 18 160 Cannon 404 | . 60 2 . . 5 121 29 . . 8 . 1 . 26 97 2 . . 14 . 7 2 2 1 3 24 Launcher 40 | . . . . . 1 2 12 7 . . . . . 11 . . . . . . 4 1 . . . 2 Special 1 | . . . . . . . . . . . . . . . 1 . . . . . . . . . . . Kinetic 805 | 29 73 . . . 2 96 160 8 . . . . . 9 60 40 86 64 . . . . . . 18 160 Thermal 264 | 29 42 3 . . 3 27 . . . 8 . 1 . 24 53 1 . 15 19 . 7 2 2 1 3 24 Explosive 31 | . . . . . 1 2 3 7 . . . . . 11 . . . . . . 4 1 . . . 2 Electromagnetic 40 | . . . . . . 6 34 . . . . . . . . . . . . . . . . . . . Robot Hit Streak 39 | 8 12 . . . 4 20 22 23 . . . . . 12 13 10 14 14 5 . 6 1 . . 8 39 Robot Miss Streak 8 | 2 4 3 . . 1 8 5 4 . . . . . 2 3 4 5 4 . . 1 8 . . 3 8 Penetration Max 3 | . . . . . . . . . . . . . . . . 1 1 3 . . . . . . 2 2 Secondary Targets 7 | . . . . . . . 3 . . . . . . . . 1 . 1 . . . . . . . 2 Max Gunslinging Chain 1 | . . . . . . . 1 . . . . . . . . 1 . 1 . . . . . . . 1 Shots Hit Robots 871 | 41 82 . . . 5 74 149 53 . 14 4 8 . 43 71 28 61 43 5 . 3 21 6 1 14 145 Core Hits 571 | 13 36 . . . 7 52 76 95 . 3 . . . 51 27 16 25 30 1 . 4 17 2 . 17 99 Critical Kills 65 | . . . . . . . . 2 . 1 . . . . 1 5 6 7 . . . 1 1 . 11 30 Critical Parts Destroyed 75 | . . . . . . . 1 8 . 1 1 1 . . . 7 14 15 . . 2 . 1 . 6 18 Critical Strikes 174 | 2 2 . . . . . 1 10 . 2 1 3 . 5 3 15 23 22 . . 2 2 2 . 17 62 Burn 3 | 2 1 . . . . . . . . . . . . . . . . . . . . . . . . . Meltdown 1 | . . . . . . . . . . . . . . . 1 . . . . . . . . . . . Destroy 133 | . . . . . . . 1 . . . . . . . . 15 23 22 . . . . . . 17 55 Blast 6 | . 1 . . . . . . . . . . . . 3 2 . . . . . . . . . . . Smash 21 | . . . . . . . . 10 . 2 1 3 . . . . . . . . 2 1 2 . . . Sever 9 | . . . . . . . . . . . . . . 2 . . . . . . . . . . . 7 Impale 1 | . . . . . . . . . . . . . . . . . . . . . . 1 . . . . Melee Attacks 337 | . . . . . . . . 86 . 38 17 12 . 78 . . . . . . 6 31 26 14 13 16 Impact 182 | . . . . . . . . 68 . 38 17 12 . . . . . . . . 6 7 20 13 1 . Slashing 111 | . . . . . . . . 18 . . . . . 77 . . . . . . . . . . . 16 Piercing 43 | . . . . . . . . . . . . . . . . . . . . . . 24 6 1 12 . Sneak Attacks 55 | . . . . . . . . 19 . 4 3 2 . 9 . . . . . . . 12 3 1 2 . Combat Hostiles 3 | . . . . . . . . 1 . . . 1 . . . . . . . . . . . . 1 . Follow-up Attacks 2 | . . . . . . . . . . . . . . . . . . . . . . 1 1 . . . Damage Inflicted 36068 | 435 1555 32 . 46 247 1726 4474 6599 . 1066 333 461 . 4420 2936 504 897 1052 167 . 1098 2198 694 150 515 4463 Guns 10035 | 435 383 . . . . 88 2163 87 . . . . . 135 341 457 897 1052 57 . . . . . 201 3739 Cannons 6306 | . 1024 . . . 103 1447 574 . . . . . . 423 2578 47 . . 110 . . . . . . . Explosions 8952 | . 114 . . . 137 188 1628 2962 . . . . . 2373 . . . . . . 973 342 . . . 235 Melee 10411 | . . . . . . . . 3550 . 1066 333 461 . 1471 . . . . . . 125 1853 694 150 314 394 Ramming 364 | . 34 32 . 46 7 3 109 . . . . . . 18 17 . . . . . . 3 . . . 95 Kinetic 12948 | 176 646 . . . 19 1049 2229 87 . . . . . 396 2009 504 897 996 . . . . . . 201 3739 Thermal 3862 | 259 761 . . . 84 409 159 484 . . . . . 338 910 . . 56 167 . . . . . . 235 Explosive 7282 | . 114 . . . 137 188 853 2478 . . . . . 2197 . . . . . . 973 342 . . . . Electromagnetic 1201 | . . . . . . 77 1124 . . . . . . . . . . . . . . . . . . . Impact 5985 | . . . . . . . . 2972 . 1066 333 461 . . . . . . . . 125 294 584 150 . . Slashing 2443 | . . . . . . . . 578 . . . . . 1471 . . . . . . . . . . . 394 Piercing 1983 | . . . . . . . . . . . . . . . . . . . . . . 1559 110 . 314 . Highest Corruption 17 | . . . . . . . . 8 8 7 . . . 13 14 16 16 16 . 11 15 6 5 . . 17 Average Corruption 9 | . . . . . . . . 4 5 3 . . . 7 13 15 12 7 . 10 12 3 5 . . 9 Corruption Purged 39 | . . . . . . . . 8 1 7 . . . . . . 16 . . . . 7 . . . . Corruption Blocked . | . . . . . . . . . . . . . . . . . . . . . . . . . . . Effects 206 | . . . . . . . . 23 1 5 . . . 4 63 19 17 2 . 3 13 7 6 . . 43 Message Errors 55 | . . . . . . . . 4 . 2 . . . 1 22 4 6 1 . . 2 1 2 . . 10 Matter Fused 47 | . . . . . . . . 6 1 1 . . . 1 10 2 2 1 . . 5 3 1 . . 14 Heat Flow Errors 20 | . . . . . . . . 3 . 1 . . . . 3 5 1 . . . 1 3 . . . 3 Energy Discharges 18 | . . . . . . . . 3 . 1 . . . 1 6 . . . . . 2 . 1 . . 4 Parts Rejected 7 | . . . . . . . . . . . . . . . . . 2 . . 1 . . . . . 4 Parts Fused 2 | . . . . . . . . 2 . . . . . . . . . . . . . . . . . . Data Loss (minor) 20 | . . . . . . . . 2 . . . . . . 5 3 2 . . . 1 . 1 . . 6 Data Loss (major) 9 | . . . . . . . . 2 . . . . . . 5 . . . . 1 . . . . . 1 Misfires 12 | . . . . . . . . 1 . . . . . . 8 3 . . . . . . . . . . Alerts 3 | . . . . . . . . . . . . . . . 1 . 1 . . . . . 1 . . . Misdirections 4 | . . . . . . . . . . . . . . 1 . . . . . 1 2 . . . . . Weapon Failures 9 | . . . . . . . . . . . . . . . 3 2 3 . . . . . . . . 1 Overload Shots 9 | . . . . . . . . . . . . . . 8 1 . . . . . . . . . . . Effects 2 | . . . . . . . . . . . . . . 2 . . . . . . . . . . . . Energy Bleed 1 | . . . . . . . . . . . . . . 1 . . . . . . . . . . . . Short Circuit 1 | . . . . . . . . . . . . . . 1 . . . . . . . . . . . . Overflow Damage 3890 | . . . . . . . 64 1689 . 335 110 207 . 426 35 . . . 19 . 282 316 215 80 112 . Projectiles 183 | . . . . . . . 51 27 . . . . . 51 35 . . . 19 . . . . . . . Explosions 229 | . . . . . . . 13 17 . . . . . 32 . . . . . . 157 10 . . . . Melee 3478 | . . . . . . . . 1645 . 335 110 207 . 343 . . . . . . 125 306 215 80 112 . Knockbacks 45 | . 4 1 . 1 1 14 . 5 . 4 . 1 . 2 9 . . . . . 1 . 2 . . . Impact 15 | . 1 1 . 1 . . . 4 . 4 . 1 . . . . . . . . 1 . 2 . . . Kinetic 29 | . 3 . . . 1 14 . . . . . . . 2 9 . . . . . . . . . . . Secondary 1 | . . . . . . . . 1 . . . . . . . . . . . . . . . . . . Self-Inflicted Damage 887 | . 98 . . . . 143 . 102 . . . . . 272 . . . . . . 173 65 . . . 34 Shots 21 | . 1 . . . . 3 . 6 . . . . . 5 . . . . . . 3 3 . . . . Rammed 45 | . 9 5 . 5 2 1 10 . . . . . . . . . . . . . . 1 . . . 12 Targets Rammed 59 | . 9 6 . 5 2 1 14 . . . . . . 4 1 . . . . . . 1 . . . 16 Kicked 9 | . . . . . . . . . . . . . . 4 1 . . . . . . . . . . 4 Crushed 5 | . . 1 . . . . 4 . . . . . . . . . . . . . . . . . . . Highest Temperature 324 | 82 178 40 . . 21 54 14 280 24 161 14 26 46 324 203 209 148 7 54 . 223 258 182 60 30 152 Average Temperature 27 | 31 55 23 . . 10 23 3 32 4 10 5 11 14 80 58 65 70 4 20 . 48 27 104 19 10 99 Received Heat Transfer 2537 | . 378 . . . 54 177 342 60 . 27 27 72 . 102 282 . 18 108 36 . 413 36 . 126 . 279 Effects 1 | . . . . . . . . 1 . . . . . . . . . . . . . . . . . . Energy Bleed 1 | . . . . . . . . 1 . . . . . . . . . . . . . . . . . . Siege Activations . | . . . . . . . . . . . . . . . . . . . . . . . . . . . Martial Activations . | . . . . . . . . . . . . . . . . . . . . . . . . . . . Shielding Activations . | . . . . . . . . . . . . . . . . . . . . . . . . . . . Robots Disrupted 1 | . . . . . . . 1 . . . . . . . . . . . . . . . . . . . Combat Hostiles 1 | . . . . . . . 1 . . . . . . . . . . . . . . . . . . . Robots Corrupted 28 | . . . . . . . 2 12 . 5 1 3 . . . . . . . . 1 . 3 1 . . Combat Hostiles 7 | . . . . . . . 1 3 . 1 . 1 . . . . . . . . 1 . . . . . Parts Fried 56 | . . . . . . . 7 31 . 6 2 5 . . 1 . . . . . . . 3 1 . . Impact Corruptions 69 | . . . . . . . . 35 . 13 3 7 . . . . . . . . 4 . 6 1 . . Robots Melted 1 | . . . . . . . . . . . . . . . 1 . . . . . . . . . . . Combat Hostiles 1 | . . . . . . . . . . . . . . . 1 . . . . . . . . . . . Parts Melted 7 | 2 1 . . . . . . . . . . . . . 4 . . . . . . . . . . . Heat Transferred 5235 | 925 1284 . . . 111 644 100 250 . . . . . 256 1166 . . 74 185 . . . . . . 240 Parts Sabotaged . | . . . . . . . . . . . . . . . . . . . . . . . . . . . Parts Stolen . | . . . . . . . . . . . . . . . . . . . . . . . . . . . Parts Stripped . | . . . . . . . . . . . . . . . . . . . . . . . . . . . Power Chain Reactions 1 | . . . . . . . 1 . . . . . . . . . . . . . . . . . . . Alert | -11 -10 -10 -10 -9 -8 -8 -8 -7 -7 -7 -7 -7 -7 -5 -5 -5 -5 -5 -4 -4 -4 -3 -3 -2 -2 -2 ------- Run | Yrd Mat Min Exi Min Mat Gar Mat Fac Was Fac Sto Rec Scr Fac Ext Cet Arc Hub Fac Was Fac Res Qua Res Tes Frg Maximum Alert Level 4 | . 1 . . . . 3 4 2 1 . 1 . . 3 1 . 1 . . . 1 2 . . . 2 Low Security (%) 57 | 100 93 100 . 100 100 14 . 67 . 100 96 100 . 75 8 100 95 100 100 100 25 68 100 100 100 9 Level 1 18 | . 6 . . . . 23 . 10 100 . 3 . . 11 91 . 4 . . . 74 20 . . . 57 Level 2 12 | . . . . . . 24 31 22 . . . . . 10 . . . . . . . 10 . . . 33 Level 3 10 | . . . . . . 37 55 . . . . . . 2 . . . . . . . . . . . . Level 4 1 | . . . . . . . 12 . . . . . . . . . . . . . . . . . . . Level 5 . | . . . . . . . . . . . . . . . . . . . . . . . . . . . High Security . | . . . . . . . . . . . . . . . . . . . . . . . . . . . Max Security . | . . . . . . . . . . . . . . . . . . . . . . . . . . . Peak Influence 1198 | 10 218 89 . . 95 1067 1198 624 232 148 204 165 . 711 379 166 200 138 125 43 364 445 150 144 121 681 Initial 520 | . 3 60 . . . 51 520 399 217 148 4 61 . . 338 136 26 39 35 43 . 185 2 78 78 60 Average 269 | 1 115 16 . . 28 575 819 175 220 46 107 96 . 189 285 76 155 41 22 22 239 126 73 108 68 374 Influence Increases 12397 | 40 712 102 . . 129 1116 1415 1330 15 250 464 185 . 1426 734 308 334 333 249 . 584 525 248 172 335 1391 Destroy 0b10 Robot/C 4460 | . 420 60 . . 80 580 840 380 . 20 180 20 . 260 360 160 80 140 . . 80 80 . . 120 600 Destroy 0b10 Robot/NC 765 | 40 15 5 . . . 5 105 165 . 40 10 10 . 65 25 10 45 25 . . 5 60 20 5 35 75 Destroy Leader 868 | . 84 10 . . 20 30 250 124 . 12 44 . . 56 32 . . 30 . . 10 36 8 2 12 108 Allied During Kill 672 | . . 11 . . 14 43 69 . . . 83 . . . 184 130 120 18 . . . . . . . . Trap Triggered on 0b10 20 | . . . . . . . . . . . . . . 20 . . . . . . . . . . . . Successful Hack 631 | . 16 . . . 4 14 7 91 . 79 6 31 . 74 56 . . . 77 . . 52 57 21 15 31 Select Force Hacks 210 | . 60 . . . . . 30 . . . . 120 . . . . . . . . . . . . . . Disable Machine 630 | . 30 15 . . . 15 60 90 . . 30 . . 90 30 . 45 15 30 . . . 30 . 105 45 Anti-Garrison Action 450 | . . . . . . 250 . . . . . . . . . . . . . . . 200 . . . . Destroy Structure 1216 | . 27 1 . . 11 89 54 150 . 24 6 4 . 366 32 8 44 30 22 . 84 52 28 39 18 127 Partial Spotted 525 | . . . . . . 15 . 45 15 30 45 . . 150 . . . . 75 . 15 45 30 30 15 15 Lose Combat Pursuer 1950 | . 60 . . . . 75 . 285 . 45 60 . . 345 15 . . 75 45 . 390 . 75 75 15 390 Influence Decreases 11765 | 35 561 258 . . 50 128 1605 1586 424 452 316 197 146 735 1181 486 286 375 196 125 230 875 112 172 368 866 Entered New Map 2905 | . 2 96 . . . 28 547 478 404 64 6 97 146 . 353 108 40 75 37 82 . 169 2 62 62 47 Time Decay 5354 | 35 499 162 . . 30 . 658 516 20 261 70 90 . 447 518 198 206 138 124 33 120 314 110 110 170 525 Lost Part 688 | . 60 . . . . 40 20 12 . . . 10 . 100 10 . . 90 . 10 110 10 . . 20 196 Lost Ally 725 | . . . . . 20 60 80 . . 13 240 . . 20 . 180 40 72 . . . . . . . . Purge Threat 2093 | . . . . . . . 300 580 . 114 . . . 168 300 . . . 35 . . 382 . . 116 98 Squads Dispatched 91 | . 6 1 . . 2 . 9 11 . 4 4 . . 14 . . . 2 3 . 7 10 1 7 4 6 Investigation 35 | . 5 1 . . . . 3 . . 1 . . . 9 . . . . . . 5 8 . 1 . 2 Extermination 17 | . . . . . . . . 4 . 2 . . . 3 . . . 1 1 . . . 1 1 2 2 Reinforcement 30 | . 1 . . . 2 . 3 6 . 1 2 . . 1 . . . 1 2 . 2 2 . 3 2 2 Assault 8 | . . . . . . . 3 1 . . 2 . . . . . . . . . . . . 2 . . Garrison 1 | . . . . . . . . . . . . . . 1 . . . . . . . . . . . . Intercept . | . . . . . . . . . . . . . . . . . . . . . . . . . . . Searches Triggered . | . . . . . . . . . . . . . . . . . . . . . . . . . . . Construction Impeded 6 | . . . . . 1 . 1 1 . . . . . 1 . . . 1 . . 1 . . . . . Haulers Reinforced 7 | . . . . . . . . 5 . 1 1 . . . . . . . . . . . . . . . Active Scanning Responses . | . . . . . . . . . . . . . . . . . . . . . . . . . . . Cargo Convoy Interrupts 2 | . . . . . . . . 1 . . . . . 1 . . . . . . . . . . . . Stealth | -11 -10 -10 -10 -9 -8 -8 -8 -7 -7 -7 -7 -7 -7 -5 -5 -5 -5 -5 -4 -4 -4 -3 -3 -2 -2 -2 --------- Run | Yrd Mat Min Exi Min Mat Gar Mat Fac Was Fac Sto Rec Scr Fac Ext Cet Arc Hub Fac Was Fac Res Qua Res Tes Frg Distress Signals 47 | . 3 . . 1 2 . 2 5 . 3 3 . . 2 3 2 . 1 . . 1 8 1 2 3 5 Communications Jammed 2 | . . . . . . . . . . . . . . . . . . . . . . . . . 2 . Distress Signals 2 | . . . . . . . . . . . . . . . . . . . . . . . . . 2 . Times Spotted 560 | . 30 3 . . 10 29 59 46 6 14 20 1 . 50 23 8 25 23 11 6 40 17 10 33 18 78 Peak Tracking Total 19 | . 4 2 . . 7 3 6 8 6 5 9 1 . 7 4 5 1 12 7 6 12 4 9 19 7 13 Tactical Retreats 71 | . 2 . . . . 3 . 9 . 3 1 . . 17 1 . . 2 3 . 8 1 2 3 3 13 Traps | -11 -10 -10 -10 -9 -8 -8 -8 -7 -7 -7 -7 -7 -7 -5 -5 -5 -5 -5 -4 -4 -4 -3 -3 -2 -2 -2 ------- Run | Yrd Mat Min Exi Min Mat Gar Mat Fac Was Fac Sto Rec Scr Fac Ext Cet Arc Hub Fac Was Fac Res Qua Res Tes Frg Traps Triggered 21 | . 3 . . . . 3 3 2 . . . . . 1 2 . . . 1 . . 1 1 . 3 1 Indirectly . | . . . . . . . . . . . . . . . . . . . . . . . . . . . Trap Hack Attempts . | . . . . . . . . . . . . . . . . . . . . . . . . . . . Triggered . | . . . . . . . . . . . . . . . . . . . . . . . . . . . Disarmed . | . . . . . . . . . . . . . . . . . . . . . . . . . . . Reprogrammed 1 | . . . . . . . . . . . . . . . . . . . . . . . . . 1 . Reused 2 | . . . . . . . . . . . . . . 2 . . . . . . . . . . . . Traps Extracted . | . . . . . . . . . . . . . . . . . . . . . . . . . . . Installed 2 | . . . . . . . . . . . . . . 2 . . . . . . . . . . . . Triggered 2 | . . . . . . . . . . . . . . 2 . . . . . . . . . . . . Most Traps Carried 3 | . . . . . . . . . . . . . 3 3 1 1 1 1 . . . . . . . . Machines | -11 -10 -10 -10 -9 -8 -8 -8 -7 -7 -7 -7 -7 -7 -5 -5 -5 -5 -5 -4 -4 -4 -3 -3 -2 -2 -2 ---------- Run | Yrd Mat Min Exi Min Mat Gar Mat Fac Was Fac Sto Rec Scr Fac Ext Cet Arc Hub Fac Was Fac Res Qua Res Tes Frg Machines Disabled 47 | . 2 1 . . . 5 4 6 . . 2 . . 6 2 . 3 1 2 . . . 2 . 7 4 Max in Single Turn 4 | . 2 1 . . . 2 2 4 . . 1 . . 3 1 . 1 1 1 . . . 1 . 1 1 Garrison Access 17 | . . . . . . . . 3 . 2 . . . 3 . . . . 1 . . 3 1 2 1 1 Garrison Relay 2 | . . . . . . 2 . . . . . . . . . . . . . . . . . . . . Phase Generator 1 | . . . . . . 1 . . . . . . . . . . . . . . . . . . . . Network Hub 1 | . . . . . . . . . . . . . . . . . . 1 . . . . . . . . Machines Repaired . | . . . . . . . . . . . . . . . . . . . . . . . . . . . Machines Dismantled . | . . . . . . . . . . . . . . . . . . . . . . . . . . . Machines Sabotaged . | . . . . . . . . . . . . . . . . . . . . . . . . . . . Overloaded Fab Kills . | . . . . . . . . . . . . . . . . . . . . . . . . . . . Hacking | -11 -10 -10 -10 -9 -8 -8 -8 -7 -7 -7 -7 -7 -7 -5 -5 -5 -5 -5 -4 -4 -4 -3 -3 -2 -2 -2 --------- Run | Yrd Mat Min Exi Min Mat Gar Mat Fac Was Fac Sto Rec Scr Fac Ext Cet Arc Hub Fac Was Fac Res Qua Res Tes Frg Machines Accessed 172 | . 10 2 4 . 1 4 8 20 . 18 3 8 3 29 13 1 . . 5 . 6 12 7 4 4 10 Terminals 94 | . 7 1 . . . 4 6 9 . 10 3 4 . 14 13 1 . . 3 . 1 4 5 1 3 5 Fabricators 11 | . . . . . . . . 5 . 3 . . . 3 . . . . . . . . . . . . Repair Stations 3 | . 1 . . . . . . . . . . . . . . . . . . . 1 1 . . . . Recycling Units 30 | . 2 . . . . . 2 2 . . . 4 . 7 . . . . 1 . 4 4 . 1 . 3 Scanalyzers 8 | . . . . . . . . 1 . 3 . . . 2 . . . . . . . . 1 . . 1 Garrison Access 18 | . . . . . 1 . . 3 . 2 . . . 3 . . . . 1 . . 3 1 2 1 1 Total Hacks 460 | . 33 4 19 . 1 10 17 46 . 52 6 24 23 73 25 2 . . 19 . 8 38 22 9 8 21 Successful 268 | . 15 2 19 . 1 2 5 34 . 30 2 17 23 41 12 . . . 15 . 6 20 6 3 7 8 Failed 190 | . 17 2 . . . 8 12 12 . 22 4 6 . 32 13 2 . . 4 . 2 18 16 6 1 13 Catastrophic 31 | . . . . . . 2 2 . . 1 . . . 5 5 1 . . . . 1 3 4 1 . 6 Database Lockouts 2 | . 1 . . . . . . . . . . 1 . . . . . . . . . . . . . . Manual 181 | . 18 2 . . . . 13 17 . 21 1 17 . 35 14 1 . . 4 . 5 14 7 5 . 7 Terminals 285 | . 26 3 . . . 10 13 29 . 36 6 13 . 47 25 2 . . 14 . 2 23 17 1 7 11 Fabricators 18 | . . . . . . . . 7 . 6 . . . 5 . . . . . . . . . . . . Repair Stations 7 | . 4 . . . . . . . . . . . . . . . . . . . 2 1 . . . . Recycling Units 59 | . 3 . . . . . 4 5 . . . 11 . 11 . . . . 3 . 4 8 . 5 . 5 Scanalyzers 21 | . . . . . . . . 2 . 8 . . . 4 . . . . . . . . 3 . . 4 Garrison Access 27 | . . . . . 1 . . 3 . 2 . . . 6 . . . . 2 . . 6 2 3 1 1 Terminal Hacks 135 | . 4 1 19 . . 2 3 11 . 13 2 2 23 14 9 . . . 11 . . 9 2 1 6 3 Record 41 | . . . 19 . . . . . . . . . 22 . . . . . . . . . . . . . Robot Analysis 6 | . 1 . . . . . 1 . . 1 . 1 . 1 . . . . . . . . 1 . . . Prototype ID Bank 16 | . 1 . . . . . . 1 . 2 . 1 . 3 . . . . 3 . . 2 1 . 2 . Open Door 10 | . . 1 . . . 1 . . . . 2 . . . 5 . . . . . . . . . 1 . Branch Access Points 4 | . . . . . . . . . . 1 . . . . . . . . 1 . . 1 . 1 . . Emergency Access Points 4 | . . . . . . . . 1 . . . . . 2 . . . . . . . 1 . . . . Machine Index 1 | . . . . . . . . . . . . . . 1 . . . . . . . . . . . . Terminal Index 3 | . 1 . . . . . . 1 . 1 . . . . . . . . . . . . . . . . Fabricator Index 1 | . . . . . . . . . . 1 . . . . . . . . . . . . . . . . Scanalyzer Index 1 | . . . . . . . . . . 1 . . . . . . . . . . . . . . . . Unreport Threat 21 | . . . . . . . 2 4 . 2 . . . 3 2 . . . 2 . . 3 . . 2 1 Locate Traps 8 | . . . . . . . . 2 . 2 . . . 1 1 . . . 2 . . . . . . . Reprogram Traps 1 | . . . . . . . . . . . . . . . . . . . . . . . . . 1 . Transport Status 1 | . . . . . . . . . . . . . . 1 . . . . . . . . . . . . Hauler Manifests 6 | . 1 . . . . . . . . 1 . . . 1 1 . . . 1 . . 1 . . . . Registered Components 3 | . . . . . . . . 1 . . . . . 1 . . . . . . . 1 . . . . Registered Prototypes 1 | . . . . . . . . . . 1 . . . . . . . . . . . . . . . . Zone Layout 4 | . . . . . . . . 1 . . . . . . . . . . 2 . . . . . . 1 Garrison Registry 1 | . . . . . . 1 . . . . . . . . . . . . . . . . . . . . Proto ID Catalog 2 | . . . . . . . . . . . . . 1 . . . . . . . . . . . . 1 Fabricator Hacks 11 | . . . . . . . . 5 . 2 . . . 4 . . . . . . . . . . . . Network Status 6 | . . . . . . . . 2 . 2 . . . 2 . . . . . . . . . . . . Load Schematic 2 | . . . . . . . . . . . . . . 2 . . . . . . . . . . . . Build 3 | . . . . . . . . 3 . . . . . . . . . . . . . . . . . . Repair Station Hacks 4 | . 2 . . . . . . . . . . . . . . . . . . . 1 1 . . . . Scan Component 2 | . 2 . . . . . . . . . . . . . . . . . . . . . . . . . Refit 2 | . . . . . . . . . . . . . . . . . . . . . 1 1 . . . . Recycling Unit Hacks 10 | . . . . . . . 1 2 . . . 4 . 2 . . . . 1 . . . . . . . Retrieve Components 10 | . . . . . . . 1 2 . . . 4 . 2 . . . . 1 . . . . . . . Scanalyzer 13 | . . . . . . . . 1 . 5 . . . 3 . . . . . . . . 2 . . 2 Insert Component 10 | . . . . . . . . 1 . 3 . . . 2 . . . . . . . . 2 . . 2 Analyze 3 | . . . . . . . . . . 2 . . . 1 . . . . . . . . . . . . Garrison Access Hacks 16 | . . . . . 1 . . 3 . 2 . . . 3 . . . . 1 . . 2 1 1 1 1 Unlock Access 1 | . . . . . 1 . . . . . . . . . . . . . . . . . . . . . Seal Access 15 | . . . . . . . . 3 . 2 . . . 3 . . . . 1 . . 2 1 1 1 1 Unauthorized Hacks 79 | . 9 1 . . . . 1 12 . 8 . 11 . 15 3 . . . 2 . 5 8 1 1 . 2 Terminals 48 | . 7 1 . . . . . 9 . 8 . 7 . 8 3 . . . . . . 3 1 . . 1 Track 1 | . . . . . . . . . . . . . . . . . . . . . . 1 . . . . Assimilate 7 | . . . . . . . . . . 2 . . . 2 . . . . . . . 1 1 . . 1 Botnet 11 | . 1 . . . . . . 3 . 1 . 2 . 1 2 . . . . . . 1 . . . . Operators 1 | . . . . . . . . . . . . 1 . . . . . . . . . . . . . . Skim 28 | . 6 1 . . . . . 6 . 5 . 4 . 5 1 . . . . . . . . . . . Fabricators . | . . . . . . . . . . . . . . . . . . . . . . . . . . . Repair Stations 1 | . . . . . . . . . . . . . . . . . . . . . 1 . . . . . Patch 1 | . . . . . . . . . . . . . . . . . . . . . 1 . . . . . Recycling Units 29 | . 2 . . . . . 1 3 . . . 4 . 7 . . . . 2 . 4 4 . 1 . 1 Reject 2 | . . . . . . . . 1 . . . . . . . . . . 1 . . . . . . . Mask 3 | . . . . . . . . 2 . . . . . . . . . . 1 . . . . . . . Tunnel 7 | . 2 . . . . . 1 . . . . 4 . . . . . . . . . . . . . . Fedlink 17 | . . . . . . . . . . . . . . 7 . . . . . . 4 4 . 1 . 1 Scanalyzers . | . . . . . . . . . . . . . . . . . . . . . . . . . . . Garrison Access 1 | . . . . . . . . . . . . . . . . . . . . . . 1 . . . . Jam 1 | . . . . . . . . . . . . . . . . . . . . . . 1 . . . . Data Cores Recovered 5 | . 1 . . . . . 1 . . 1 . . . 2 . . . . . . . . . . . . Used 2 | . . . . . . . . . . . . . . 2 . . . . . . . . . . . . Hacking Detections 119 | . 8 1 . . . 4 8 15 . 16 1 4 . 23 9 1 . . 3 . 1 6 6 2 3 8 Full Trace Events 5 | . 1 . . . . . . . . 1 . . . 2 . . . . . . . . . . . 1 Feedback Events . | . . . . . . . . . . . . . . . . . . . . . . . . . . . Feedback Blocked . | . . . . . . . . . . . . . . . . . . . . . . . . . . . Robot Schematics Acquired 2 | . . . . . . . . . . . . . . . . . . . . . . . . . 2 . Robots Built . | . . . . . . . . . . . . . . . . . . . . . . . . . . . Authchips . | . . . . . . . . . . . . . . . . . . . . . . . . . . . Time . | . . . . . . . . . . . . . . . . . . . . . . . . . . . Total Robot Build Rating . | . . . . . . . . . . . . . . . . . . . . . . . . . . . Part Schematics Acquired 10 | . . . . . . . . . . 1 . . . 1 . . . . . . . . . . 8 . Parts Built 6 | . . . . . . . . 6 . . . . . . . . . . . . . . . . . . Authchips . | . . . . . . . . . . . . . . . . . . . . . . . . . . . Time 188 | . . . . . . . . 188 . . . . . . . . . . . . . . . . . . Total Part Build Rating 34 | . . . . . . . . 34 . . . . . . . . . . . . . . . . . . Parts Repaired . | . . . . . . . . . . . . . . . . . . . . . . . . . . . Time . | . . . . . . . . . . . . . . . . . . . . . . . . . . . Parts Recycled . | . . . . . . . . . . . . . . . . . . . . . . . . . . . Recycled Matter . | . . . . . . . . . . . . . . . . . . . . . . . . . . . Retrieved Matter . | . . . . . . . . . . . . . . . . . . . . . . . . . . . Retrieved Components 23 | . . . . . . . 10 4 . . . 3 . 5 . . . . 1 . . . . . . . Parts Scanalyzed 3 | . . . . . . . . 1 . 1 . . . 1 . . . . . . . . . . . . Part Schematics Acquired 2 | . . . . . . . . . . 1 . . . 1 . . . . . . . . . . . . Parts Damaged 1 | . . . . . . . . . . 1 . . . . . . . . . . . . . . . . Bothacking | -11 -10 -10 -10 -9 -8 -8 -8 -7 -7 -7 -7 -7 -7 -5 -5 -5 -5 -5 -4 -4 -4 -3 -3 -2 -2 -2 ------------ Run | Yrd Mat Min Exi Min Mat Gar Mat Fac Was Fac Sto Rec Scr Fac Ext Cet Arc Hub Fac Was Fac Res Qua Res Tes Frg Used RIF Installer . | . . . . . . . . . . . . . . . . . . . . . . . . . . . Robots Hacked 1 | . . . . . . . . . . . . . . 1 . . . . . . . . . . . . Non-combat 1 | . . . . . . . . . . . . . . 1 . . . . . . . . . . . . Combat . | . . . . . . . . . . . . . . . . . . . . . . . . . . . Robot Hacks Applied 1 | . . . . . . . . . . . . . . 1 . . . . . . . . . . . . find_chute 1 | . . . . . . . . . . . . . . 1 . . . . . . . . . . . . Relay Couplers Released 14 | . . . . . . 11 . . . . . . . 2 . . . . . . . . . 1 . . Machine Destruction 11 | . . . . . . 8 . . . . . . . 2 . . . . . . . . . 1 . . Programmers 3 | . . . . . . 3 . . . . . . . . . . . . . . . . . . . . Fabnet Peak Effective % . | . . . . . . . . . . . . . . . . . . . . . . . . . . . Robots Rewired 10 | . . . . . . 3 . . . . . . . . 7 . . . . . . . . . . . Allies Hacked . | . . . . . . . . . . . . . . . . . . . . . . . . . . . Hacks Repelled . | . . . . . . . . . . . . . . . . . . . . . . . . . . . Allies | -11 -10 -10 -10 -9 -8 -8 -8 -7 -7 -7 -7 -7 -7 -5 -5 -5 -5 -5 -4 -4 -4 -3 -3 -2 -2 -2 -------- Run | Yrd Mat Min Exi Min Mat Gar Mat Fac Was Fac Sto Rec Scr Fac Ext Cet Arc Hub Fac Was Fac Res Qua Res Tes Frg Total Allies 45 | . . 3 . . . 5 . . . 2 12 . . 2 13 5 . . . . . 1 1 . . 1 Largest Group 13 | . . 3 3 3 3 5 4 . . 2 10 . . 1 13 13 9 6 . . . 1 . . . 1 Highest-Rated Group 569 | . . 40 40 40 40 101 76 . . 20 187 . . 10 480 569 569 424 . . . 10 . . . 45 Highest-Rated Ally 159 | . . 16 16 16 16 31 31 . . 10 31 . . 10 159 159 96 96 . . . 10 . . . 45 Initial Warlord ECA Mod 43 | . . . . . . . 7 6 6 6 6 6 6 . . . . . . . . . . . . . Total Orders 3 | . . . . . . . . . . . . . . . . . 1 1 . . . . . . . 1 STAY 3 | . . . . . . . . . . . . . . . . . 1 1 . . . . . . . 1 Ally Attacks 349 | . . 6 . . 13 20 55 . . . 80 . . . 69 52 39 15 . . . . . . . . Total Damage 7791 | . . 38 . . 129 337 970 . . . 949 . . . 1655 1329 1819 565 . . . . . . . . Kills 49 | . . 3 . . 1 5 12 . . . 9 . . . 7 4 5 3 . . . . . . . . Allies Corrupted 3 | . . . . . . . . . . 1 . . . . . . . 2 . . . . . . . . Allies Melted 3 | . . . . . . . . . . . . . . . 1 . . 1 . . . . . . . 1 Intel | -11 -10 -10 -10 -9 -8 -8 -8 -7 -7 -7 -7 -7 -7 -5 -5 -5 -5 -5 -4 -4 -4 -3 -3 -2 -2 -2 ------- Run | Yrd Mat Min Exi Min Mat Gar Mat Fac Was Fac Sto Rec Scr Fac Ext Cet Arc Hub Fac Was Fac Res Qua Res Tes Frg Active Infowar (turns) 10709 | 22 214 . . . . . . 1058 27 932 159 113 121 1378 1420 406 425 335 467 88 272 973 222 225 375 1477 Optics 7823 | . . . . . . . . 92 . . . . . 1163 1420 406 425 335 467 27 216 973 222 225 375 1477 Sensors 5971 | . . . . . . . . 906 27 932 159 113 121 1270 . . . . 297 88 104 750 222 225 369 388 Terrain 356 | . . . . . . . . . . . . . . . . . . . . . . . . 220 136 . Structural 350 | . . . . . . . . . . . . . . . . . 182 168 . . . . . . . . Seismic 293 | 22 214 . . . . . . 57 . . . . . . . . . . . . . . . . . . T.N.C. 374 | . . . . . . . . 145 . . . . . . . . . . . . . 229 . . . . Machine Analysis 392 | . . . . . . . . 213 . . . . . . . . . . 153 26 . . . . . . Cloaking 549 | . . . . . . . . . . . . . . . . . . . . 2 . . . . 138 409 Jamming 855 | . . . . . . . . . . . . . . . . . . . . . . 135 . . 174 546 ECM 291 | . . . . . . . . . . . . . . . . . . . . . . 115 . 51 124 1 Robot Analysis Total 6 | . 1 . . . . . 1 . . 1 . 1 . 1 . . . . . . . . 1 . . . Derelict Logs Recovered 3 | . . 1 . 2 . . . . . . . . . . . . . . . . . . . . . . Drone Launches . | . . . . . . . . . . . . . . . . . . . . . . . . . . . Drone Recoveries . | . . . . . . . . . . . . . . . . . . . . . . . . . . . Exploration | -11 -10 -10 -10 -9 -8 -8 -8 -7 -7 -7 -7 -7 -7 -5 -5 -5 -5 -5 -4 -4 -4 -3 -3 -2 -2 -2 ------------- Run | Yrd Mat Min Exi Min Mat Gar Mat Fac Was Fac Sto Rec Scr Fac Ext Cet Arc Hub Fac Was Fac Res Qua Res Tes Frg Turns Passed 19688 | 274 1463 1130 679 664 142 1465 2466 1617 42 933 159 195 396 1378 1420 406 425 335 467 88 272 973 222 225 375 1477 Spaces Moved 25009 | 119 656 691 421 403 77 726 1055 3029 155 1818 281 606 1559 3244 687 212 253 308 645 145 437 2485 1001 1039 1113 1844 Core 585 | 5 . . . . . . . . . . . . . . . . . 20 397 . 139 23 . . . 1 Treads 4143 | 114 656 691 421 403 77 726 1055 . . . . . . . . . . . . . . . . . . . Legs 995 | . . . . . . . . . . . . . . 37 370 90 . . . . . . . . . 498 Wheels 478 | . . . . . . . . . . . . . . . 317 39 . . . . . 122 . . . . Hover 690 | . . . . . . . . . . . . . . . . 83 253 288 . 66 . . . . . . Flight 18118 | . . . . . . . . 3029 155 1818 281 606 1559 3207 . . . . 248 79 298 2340 1001 1039 1113 1345 Fastest Speed 14 | 50 160 160 160 160 160 160 158 24 24 23 23 23 23 20 115 56 48 48 40 40 40 16 16 16 16 14 Average Speed 55 | 155 160 160 160 160 160 160 191 24 24 23 23 24 23 25 152 131 53 49 51 57 46 25 16 16 17 43 Slowest Speed 1250 | 160 160 160 160 160 160 160 243 24 24 24 23 26 26 190 190 265 96 108 200 120 200 200 16 18 91 1250 Overloaded Moves 98 | . . . . . . . . . . . . . . 64 . . . . . . . . . . . 34 Propulsion Burnouts . | . . . . . . . . . . . . . . . . . . . . . . . . . . . Robots Hopped 132 | . . . . . . . . 31 10 7 1 1 . 10 . . . . 5 . 7 4 27 8 12 9 Potential Cave-ins 26 | . . . . . . . . . . . . . . 9 . . . . . . 9 . . . . 8 Cave-ins Triggered 2 | . . . . . . . . . . . . . . . . . . . . . 1 . . . . 1 Exploration Rate (%) 66 | 7 98 99 78 94 16 89 97 61 86 51 50 90 88 65 81 69 83 38 20 90 16 70 87 31 80 55 Regions Visited 26 Branch Regions 13 Pre-discovered Areas 21 | . 3 1 1 2 . . 1 2 . . . 4 4 3 . . . . . . . . . . . . Known Exits Taken 17 | . . . 1 . 1 . 1 . . 1 1 1 1 1 1 1 1 1 . . 1 1 1 1 1 . Unknown Exits Taken 4 | 1 1 1 . 1 . . . . . . . . . . . . . . . . . . . . . . Scrap Searched 8 | . . 1 . 2 . . . . . . . . 5 . . . . . . . . . . . . . Spaces Dug 243 | . . . . . . 6 3 31 . 22 6 3 . 50 . . . 4 6 . 46 9 12 12 4 29 Terrain Destroyed 1029 | . 32 1 . . 12 89 63 171 . 24 6 4 . 246 11 1 8 21 11 . 124 36 14 13 6 136 Melee 147 | . . . . . . . . 31 . 22 6 3 . 47 . . . . . . 3 9 12 12 2 . Projectile 125 | . 4 1 . . . . . . . 2 . 1 . 11 11 1 7 21 11 . 7 2 2 1 3 40 AOE 755 | . 28 . . . 12 89 63 140 . . . . . 188 . . . . . . 114 25 . . . 96 Terrain Rammed . | . . . . . . . . . . . . . . . . . . . . . . . . . . . Walls Destroyed . | . . . . . . . . . . . . . . . . . . . . . . . . . . . Machines Disabled . | . . . . . . . . . . . . . . . . . . . . . . . . . . . Actions | -11 -10 -10 -10 -9 -8 -8 -8 -7 -7 -7 -7 -7 -7 -5 -5 -5 -5 -5 -4 -4 -4 -3 -3 -2 -2 -2 --------- Run | Yrd Mat Min Exi Min Mat Gar Mat Fac Was Fac Sto Rec Scr Fac Ext Cet Arc Hub Fac Was Fac Res Qua Res Tes Frg Total 29135 | 153 951 709 428 420 87 897 1350 3742 147 2244 342 626 1591 3627 943 297 451 412 757 148 475 2767 1012 1060 1235 2264 Wait 1984 | . 182 6 1 9 . 31 65 489 . 363 44 . 10 162 78 24 125 39 70 . 16 107 2 2 39 120 Move 24742 | 118 655 690 420 402 77 725 1054 2970 142 1803 278 603 1558 3223 686 211 252 307 635 144 422 2476 954 1022 1090 1825 Hop 110 | . . . . . . . . 28 2 7 1 1 . 10 . . . . 5 . 6 4 19 8 10 9 Pick Up 163 | . 15 4 3 1 . 12 22 29 . 4 . . 6 13 1 . 1 1 3 . 1 26 3 3 7 8 Fast Attach 182 | 6 5 . . 1 . 3 6 10 . 1 . 2 5 19 6 12 7 1 8 2 3 30 . . 11 44 Attach 88 | . 3 . . . 1 4 4 20 . 1 . . 1 10 2 . . 1 9 . 4 11 . 2 2 13 Detach 84 | . . . . . . 1 3 15 . . . 3 2 10 1 1 1 1 7 . 3 19 . . 4 13 Swap 228 | . 7 . 1 . 4 7 38 26 3 12 2 2 2 25 8 5 4 4 . 2 1 17 9 8 17 24 Drop 209 | . 2 . 3 2 . 5 28 40 . 7 . 2 7 23 3 13 4 5 1 . 1 27 2 1 10 23 Fire 775 | 29 73 3 . . 4 83 116 11 . 8 . 1 . 39 66 31 57 53 19 . 11 3 2 1 21 144 Melee 325 | . . . . . . . . 86 . 38 17 12 . 75 . . . . . . 6 28 21 13 13 16 Ram 13 | . . . . . . . . . . . . . . . . . . . . . . 1 . . . 12 Kick 9 | . . . . . . . . . . . . . . 4 1 . . . . . . . . . . 4 Crush 36 | . 9 6 . 5 1 1 14 . . . . . . . . . . . . . . . . . . . Escape Stasis 77 | . . . . . . 1 . 18 . . . . . 11 8 . . . . . 1 18 . . 11 9 Rewire 107 | . . . . . . 24 . . . . . . . . 83 . . . . . . . . . . . Trap 2 | . . . . . . . . . . . . . . 2 . . . . . . . . . . . . Miscellaneous 1 | . . . . . . . . . . . . . . 1 . . . . . . . . . . . . Route ------- -11/Scrapyard -10/Materials (discovered 6 exits: *Mat x3 / *Min x2 / *Sub) -10/Mines (discovered 4 exits: *Mat x2 / *Exi / Sub) -10/Exiles (discovered 2 exits: *Min x2) -9/Mines (discovered 2 exits: *Mat x2) -8/Materials (discovered 3 exits: Fac x2 / Gar) -8/Garrison (discovered 3 exits: *Mat x3) -8/Materials (discovered 3 exits: *Fac x3) -7/Factory (discovered 5 exits: *Fac x4 / *Low) -7/Waste -7/Factory (discovered 6 exits: *Fac x2 / *Sto x2 / *Low x2) -7/Storage -7/Recycling -7/Scraptown (discovered 2 exits: *Fac x2) -5/Factory (discovered 8 exits: *Fac x4 / *Upp x2 / *Ext x2) -5/Extension (discovered 3 exits: *Fac x2 / *Cet) -5/Cetus (discovered 2 exits: *Fac / *Arc) -5/Archives (discovered 3 exits: *Fac / *Hub x2) -5/Hub_04(d) (discovered 2 exits: *Fac x2) -4/Factory (discovered 3 exits: Res / *Upp x2) -4/Waste -4/Factory -3/Research (discovered 5 exits: *Res x2 / Arm / *Qua x2) -3/Quarantine -2/Research (discovered 4 exits: *Acc x2 / *Tes x2) -2/Testing (discovered 3 exits: *Acc / [*Sec] / *Frg) -2/Protoforge History --------- Turn | Location | Event 5 | -11/Scrapyard | Discovered new exit (range 15) 275 | -11/Scrapyard | Entered Materials 314 | -10/Materials | Build established: Mutant 387 | -10/Materials | Discovered new exit (range 16) 664 | -10/Materials | Discovered new exit (range 6) 775 | -10/Materials | Derelicts attacked the area 875 | -10/Materials | Central database locked down 883 | -10/Materials | Discovered new exit (range 7) 1067 | -10/Materials | Discovered new exit (range 8) 1080 | -10/Materials | Discovered new exit (range 9) 1171 | -10/Materials | Discovered new exit (range 7) 1381 | -10/Materials | Learned Storage stockpile data 1430 | -10/Materials | Learned 2 Mines zone layouts 1471 | -10/Materials | Learned location of 2 exits from Materials 1543 | -10/Materials | Learned location of 2 exits from Mines 1595 | -10/Materials | Learned Storage terminal intel 1738 | -10/Materials | Entered Mines 1739 | -10/Mines | Identified exit to Subcaves 1739 | -10/Mines | Identified exit to Materials 1742 | -10/Mines | Assisted by bots powering up and referring to "LRC-V3" 1953 | -10/Mines | Received a Rocket Launcher from a helpful Derelict 2051 | -10/Mines | Deemed a non-threat by the Exiles lab entrance 2051 | -10/Mines | Discovered new exit (range 5) 2388 | -10/Mines | Learned 2 Materials zone layouts 2426 | -10/Mines | Learned location of Storage (-7) 2508 | -10/Mines | Discovered exit to Materials (range 11) 2530 | -10/Mines | Met a Derelict shopkeep closing up shop 2868 | -10/Mines | Entered Exiles 2868 | -10/Exiles | Accompanied by 3 allies 2869 | -10/Exiles | Identified exit to Mines 2908 | -10/Exiles | Met 8R-AWN 2936 | -10/Exiles | Met EX-HEX 3001 | -10/Exiles | Met EX-DEC 3169 | -10/Exiles | Visited The Gauntlet 3261 | -10/Exiles | Met EX-BIN 3409 | -10/Exiles | Learned location of Zion (-6) 3547 | -10/Exiles | Entered Mines 3547 | -9/Mines | Accompanied by 3 allies 3552 | -9/Mines | Met a Derelict bent on vengeance 3579 | -9/Mines | Assembled infested the area 3636 | -9/Mines | Discovered new exit (range 16) 3876 | -9/Mines | Discovered new exit (range 6) 4211 | -9/Mines | Entered Materials 4211 | -8/Materials | Accompanied by 3 allies 4211 | -8/Materials | Evolved 4 slots: Propulsion x2, Utility x2 4212 | -8/Materials | Identified exit to Factory 4352 | -8/Materials | Identified exit to Garrison 4353 | -8/Materials | Entered Garrison 4353 | -8/Garrison | Accompanied by 2 allies 4533 | -8/Garrison | Triggered checkpoint 4567 | -8/Garrison | Garrison Relay disabled 4648 | -8/Garrison | Triggered checkpoint 4746 | -8/Garrison | Discovered new exit (range 12) 4807 | -8/Garrison | Triggered checkpoint 4828 | -8/Garrison | Build established: Scavenger-Mutant 5005 | -8/Garrison | Triggered checkpoint 5045 | -8/Garrison | Triggered checkpoint 5057 | -8/Garrison | Garrison Relay disabled 5141 | -8/Garrison | Discovered new exit (range 10) 5187 | -8/Garrison | Triggered checkpoint 5293 | -8/Garrison | Phase Generator disabled 5585 | -8/Garrison | Rescued a captive Derelict 5586 | -8/Garrison | Rescued a captive Derelict 5619 | -8/Garrison | Triggered checkpoint 5625 | -8/Garrison | Discovered new exit (range 11) 5740 | -8/Garrison | Discovered new exit (range 32) 5740 | -8/Garrison | Discovered new exit (range 63) 5740 | -8/Garrison | Discovered new exit (range 74) 5743 | -8/Garrison | Triggered checkpoint 5818 | -8/Garrison | Entered Materials 5818 | -8/Materials | Accompanied by 4 allies 5941 | -8/Materials | Build established: Mutant 6196 | -8/Materials | Lost 3 allies 6246 | -8/Materials | Discovered exit to Factory (range 14) 6501 | -8/Materials | Discovered exit to Factory (range 16) 6618 | -8/Materials | First assault squad dispatched 7872 | -8/Materials | Core integrity fell below 50% 7922 | -8/Materials | Destroyed 8 combat bots 7990 | -8/Materials | Discovered exit to Factory (range 16) 8212 | -8/Materials | Build established: Scavenger-Mutant 8284 | -8/Materials | Entered Factory 8284 | -7/Factory | Evolved 2 slots: Propulsion x1, Utility x1 8359 | -7/Factory | Discovered new exit (range 18) 8504 | -7/Factory | Discovered new exit (range 15) 8571 | -7/Factory | Fabricated Hyp. Gauss Cannon (x2) 8714 | -7/Factory | Learned Extension security intel 8716 | -7/Factory | Found Prototype Launcher 8716 | -7/Factory | Identified Rocket Array 8721 | -7/Factory | Found Rocket Array 8752 | -7/Factory | Discovered new exit (range 15) 8756 | -7/Factory | Identified exit to Factory 8757 | -7/Factory | Learned location of Proximity Caves (-4) 8789 | -7/Factory | Learned 2 Proximity Caves zone layouts 8826 | -7/Factory | Learned Extension trap positions 8828 | -7/Factory | Learned Extension non-interactive machine intel 8829 | -7/Factory | Learned location of Upper Caves (-5) 8830 | -7/Factory | Learned location of 1 exit from Extension 8840 | -7/Factory | Build established: Hacker-Sprinter 8841 | -7/Factory | Learned 4 Proximity Caves zone layouts 8887 | -7/Factory | Learned location of 2 exits from Proximity Caves 9035 | -7/Factory | Fabricated Adv. Sensor Array? 9092 | -7/Factory | Fabricated Adv. Trap Extractor (x2) 9727 | -7/Factory | Cargo convoy interrupted 9754 | -7/Factory | Destroyed 7 combat bots 9809 | -7/Factory | Found Prototype Protection 9884 | -7/Factory | First assault squad dispatched 9888 | -7/Factory | Identified exit to Lower Caves 9901 | -7/Factory | Sucked down chute 9901 | -7/Factory | Entered Waste 9903 | -7/Waste | Found Prototype Launcher 9903 | -7/Waste | Identified Scatter Rocket Array 9915 | -7/Waste | Spotted C-40 Crusher 9915 | -7/Waste | Spotted C-40 Crusher 9916 | -7/Waste | EMP discharged 9927 | -7/Waste | Spotted C-40 Crusher 9927 | -7/Waste | Spotted C-40 Crusher 9934 | -7/Waste | Spotted C-40 Crusher 9934 | -7/Waste | Spotted C-40 Crusher 9941 | -7/Waste | Discovered new exit (range 10) 9942 | -7/Waste | Identified exit to Factory 9943 | -7/Waste | Entered Factory 10005 | -7/Factory | Build established: Sprinter 10168 | -7/Factory | Identified exit to Storage 10228 | -7/Factory | Discovered exit to Factory (range 8) 10260 | -7/Factory | Discovered exit to Factory (range 13) 10686 | -7/Factory | Learned Extension terminal intel 10753 | -7/Factory | Learned location of 1 exit from Upper Caves 10808 | -7/Factory | Learned location of 1 exit from Extension 10852 | -7/Factory | Learned Extension trap positions 10876 | -7/Factory | Entered Storage 10878 | -7/Storage | Loaded intel: 13 terminal locations 10883 | -7/Storage | Assisted by bots powering up and referring to "LRC-V3" 10972 | -7/Storage | Met a pair of Derelict thieves 11034 | -7/Storage | Used back door to open Recycling access 11034 | -7/Storage | Discovered new exit (range 5) 11034 | -7/Storage | Identified exit to Recycling 11035 | -7/Storage | Entered Recycling 11053 | -7/Recycling | Lost 4 allies 11224 | -7/Recycling | Scanned before Scraplab entrance 11230 | -7/Recycling | Discovered new exit (range 2) 11230 | -7/Recycling | Identified exit to Scraptown 11230 | -7/Recycling | Entered Scraptown 11270 | -7/Scraptown | Discovered new exit (range 11) 11289 | -7/Scraptown | Visited Spacefarers 11291 | -7/Scraptown | Visited Junk Repository 11311 | -7/Scraptown | Visited Red Mages 11314 | -7/Scraptown | Visited Scrapoid Research Area 11319 | -7/Scraptown | Visited Science Testing Area 11323 | -7/Scraptown | Visited UFD Registry 11323 | -7/Scraptown | Registered with UFD as "Boltrunner" 11326 | -7/Scraptown | Visited Cyclists 11329 | -7/Scraptown | Entered Cyclist Reading Room 11332 | -7/Scraptown | Visited Shadow of the Wyrm 11398 | -7/Scraptown | Visited Junk Cannon Lab 11407 | -7/Scraptown | Visited Scrap Suit Storage 11411 | -7/Scraptown | Visited Research Penetration Think Tank 11416 | -7/Scraptown | Visited Cartography Club 11420 | -7/Scraptown | Visited Derelict Rescue Squad 11424 | -7/Scraptown | Visited Scrapoid Pod Storage 11427 | -7/Scraptown | Visited Infowarlord's Domain 11450 | -7/Scraptown | Visited Chapter 10 11454 | -7/Scraptown | Visited Science Guys 11468 | -7/Scraptown | Visited LU-1G1's Boring Crew 11481 | -7/Scraptown | Build established: Hacker-Sprinter 11490 | -7/Scraptown | Found Exp. Signal Interpreter 11510 | -7/Scraptown | Found Scrapoid Pod 11524 | -7/Scraptown | Found Surveybot 17 Chip 11568 | -7/Scraptown | Found Deep Structural Scanner 11571 | -7/Scraptown | Learned location of Testing (-2) 11571 | -7/Scraptown | Learned 12 Materials zone layouts 11571 | -7/Scraptown | Learned 8 Factory zone layouts 11571 | -7/Scraptown | Learned 16 Factory zone layouts 11571 | -7/Scraptown | Learned 24 Factory zone layouts 11571 | -7/Scraptown | Learned 12 Lower Caves zone layouts 11571 | -7/Scraptown | Learned 20 Lower Caves zone layouts 11571 | -7/Scraptown | Learned 24 Upper Caves zone layouts 11571 | -7/Scraptown | Learned 4 Armory zone layouts 11571 | -7/Scraptown | Learned location of 1 exit from Factory 11571 | -7/Scraptown | Learned location of 2 exits from Research 11571 | -7/Scraptown | Learned location of 3 exits from Proximity Caves 11571 | -7/Scraptown | Identified exit to Factory 11612 | -7/Scraptown | Met Optimus 11612 | -7/Scraptown | Accepted into 0bPrime 11626 | -7/Scraptown | Entered Factory 11626 | -5/Factory | Evolved 4 slots: Power x1, Propulsion x1, Utility x2 11627 | -5/Factory | Identified exit to Factory 11627 | -5/Factory | Identified exit to Upper Caves 11629 | -5/Factory | Identified exit to Extension 11711 | -5/Factory | Loaded intel: 8 recycling unit locations 11717 | -5/Factory | Learned location of Protoforge (-2) 11726 | -5/Factory | Discovered exit to Extension (range 15) 11770 | -5/Factory | Found Scatter Rocket Array 12030 | -5/Factory | Learned location of Warlord (-4) 12098 | -5/Factory | Learned Quarantine security intel 12116 | -5/Factory | Learned Quarantine security intel 12124 | -5/Factory | Learned location of Archives (-5) 12125 | -5/Factory | Learned location of 1 exit from Upper Caves 12126 | -5/Factory | Learned 4 Proximity Caves zone layouts 12133 | -5/Factory | Learned Armory emergency access door positions 12149 | -5/Factory | Learned location of 2 exits from Proximity Caves 12258 | -5/Factory | Build established: Scout 12445 | -5/Factory | Identified Active Cooling Armor 12478 | -5/Factory | Found Prototype Launcher 12478 | -5/Factory | Identified Mni. Smartbomb Launcher 12504 | -5/Factory | Spotted B-75 Beast 12770 | -5/Factory | Cargo convoy interrupted 12804 | -5/Factory | Garrison activated, responded to threat 12814 | -5/Factory | Found PL-3XN's Ring of Power 12856 | -5/Factory | Destroyed 7 combat bots 12872 | -5/Factory | Found Prototype Launcher 12872 | -5/Factory | Identified Adv. Micro-nuke Launcher 12921 | -5/Factory | Lost 3 parts (2n1w) 12968 | -5/Factory | System corruption reached 10% 12972 | -5/Factory | Found Prototype Launcher 13004 | -5/Factory | Entered Extension 13006 | -5/Extension | Loaded intel: 32 trap records 13008 | -5/Extension | Loaded intel: 20 non-interactive machine locations 13009 | -5/Extension | Loaded intel: 15 terminal locations 13097 | -5/Extension | Core integrity fell below 50% 13160 | -5/Extension | Build established: Mutant 13162 | -5/Extension | Rescued a captive Derelict 13229 | -5/Extension | Rescued a captive Derelict 13312 | -5/Extension | Rescued a captive Derelict 13380 | -5/Extension | Rescued A7 13414 | -5/Extension | Rescued a captive Derelict 13414 | -5/Extension | Rescued a captive Derelict 13582 | -5/Extension | Identified Tactical Quantum Warhead 13773 | -5/Extension | Spotted B-75 Beast 13784 | -5/Extension | Destroyed B-75 Beast 13800 | -5/Extension | Spotted B-75 Beast 13820 | -5/Extension | Allies destroyed B-75 Beast 13961 | -5/Extension | Rescued a captive Derelict 14126 | -5/Extension | Build established: Scavenger-Mutant 14356 | -5/Extension | Discovered new exit (range 6) 14362 | -5/Extension | Identified exit to Cetus 14424 | -5/Extension | Entered Cetus 14424 | -5/Cetus | Accompanied by 13 allies (A7) 14429 | -5/Cetus | Acquired a Cetus Manufacturing Module code from A7 14438 | -5/Cetus | Spotted Cetus Guard 14439 | -5/Cetus | Spotted Cetus Guard 14440 | -5/Cetus | Spotted Cetus Guard 14447 | -5/Cetus | Allies destroyed Cetus Guard 14448 | -5/Cetus | Spotted Cetus Guard 14475 | -5/Cetus | Allies destroyed Cetus Guard 14478 | -5/Cetus | Destroyed Cetus Guard 14486 | -5/Cetus | Destroyed Cetus Guard 14509 | -5/Cetus | Lost 7 allies 14617 | -5/Cetus | Discovered new exit (range 21) 14640 | -5/Cetus | Started Cetus Manufacturing Module 14665 | -5/Cetus | Manufactured an Enhanced Grunt 14688 | -5/Cetus | Spotted Cetus Guard 14690 | -5/Cetus | Manufactured an Enhanced Grunt 14690 | -5/Cetus | Spotted Cetus Guard 14690 | -5/Cetus | Spotted Cetus Guard 14692 | -5/Cetus | Destroyed Cetus Guard 14695 | -5/Cetus | Destroyed Cetus Guard 14695 | -5/Cetus | Spotted Cetus Guard 14704 | -5/Cetus | Destroyed Cetus Guard 14713 | -5/Cetus | Destroyed Cetus Guard 14715 | -5/Cetus | Manufactured an Enhanced Grunt 14720 | -5/Cetus | Found Prototype Protection 14720 | -5/Cetus | Identified Med. Regenerative Plating 14721 | -5/Cetus | Discovered exit to Factory (range 21) 14740 | -5/Cetus | Manufactured an Enhanced Grunt 14742 | -5/Cetus | Extracted ID and sensor layout for unrecognized location from A7's data core 14765 | -5/Cetus | Manufactured an Enhanced Grunt 14811 | -5/Cetus | Identified exit to Archives 14830 | -5/Cetus | Entered Archives 14830 | -5/Archives | Accompanied by 9 allies 14893 | -5/Archives | Discovered new exit (range 22) 14895 | -5/Archives | Discovered new exit (range 21) 14906 | -5/Archives | Identified exit to Hub_04(d) 14910 | -5/Archives | Lost 3 allies 14955 | -5/Archives | Discovered exit to Factory (range 22) 15255 | -5/Archives | Entered Hub_04(d) 15255 | -5/Hub_04(d) | Accompanied by 6 allies 15275 | -5/Hub_04(d) | Discovered exit to Factory (range 9) 15379 | -5/Hub_04(d) | Discovered exit to Factory (range 15) 15423 | -5/Hub_04(d) | Network Hub disabled 15425 | -5/Hub_04(d) | Spotted Lightning 15425 | -5/Hub_04(d) | Spotted Lightning 15426 | -5/Hub_04(d) | Spotted Lightning 15468 | -5/Hub_04(d) | Spotted Lightning 15468 | -5/Hub_04(d) | Spotted Lightning 15477 | -5/Hub_04(d) | Spotted Lightning 15479 | -5/Hub_04(d) | Destroyed Lightning 15480 | -5/Hub_04(d) | Lost 4 allies 15554 | -5/Hub_04(d) | Destroyed Lightning 15581 | -5/Hub_04(d) | Core integrity fell below 20% 15590 | -5/Hub_04(d) | Entered Factory 15590 | -4/Factory | Evolved 2 slots: Propulsion x1, Utility x1 15591 | -4/Factory | Identified exit to Research 15591 | -4/Factory | Identified exit to Upper Caves 15606 | -4/Factory | Lost 6 parts (4n2w) 16057 | -4/Factory | Sucked down chute 16057 | -4/Factory | Entered Waste 16063 | -4/Waste | Spotted C-40 Crusher 16065 | -4/Waste | Spotted C-40 Crusher 16068 | -4/Waste | Spotted C-40 Crusher 16072 | -4/Waste | EMP discharged 16073 | -4/Waste | Spotted C-40 Crusher 16080 | -4/Waste | System corruption reached 10% 16107 | -4/Waste | Spotted C-40 Crusher 16108 | -4/Waste | Spotted C-40 Crusher 16118 | -4/Waste | Crushed by Compactor (1 part destroyed, 2 dropped) 16134 | -4/Waste | Discovered new exit (range 10) 16144 | -4/Waste | Identified exit to Factory 16145 | -4/Waste | Entered Factory 16153 | -4/Factory | Loaded intel: 8 recycling unit locations 16223 | -4/Factory | Lost 3 parts (1n2u) 16302 | -4/Factory | Lost 4 parts (2p1n1w) 16326 | -4/Factory | Crushed by falling debris 16330 | -4/Factory | Core integrity fell below 50% 16358 | -4/Factory | Lost 4 parts (2u2w) 16409 | -4/Factory | Discovered exit to Research (range 19) 16412 | -4/Factory | Spotted B-86 Titan 16417 | -4/Factory | Entered Research 16417 | -3/Research | Evolved 2 slots: Utility x2 16418 | -3/Research | Identified exit to Armory 16418 | -3/Research | Identified exit to Quarantine 16602 | -3/Research | Build established: Mutant 16617 | -3/Research | Revision forces began assault on 0b10 16656 | -3/Research | Met up with Revision 17++ 16886 | -3/Research | Lost 3 allies 16948 | -3/Research | Loaded intel: 5 recycling unit locations 17009 | -3/Research | Found Prototype Device 17117 | -3/Research | Research terminal network offline 17189 | -3/Research | Found Heavy Servo Lattice 17198 | -3/Research | Identified Exp. Shield Generator 17316 | -3/Research | Discovered new exit (range 21) 17336 | -3/Research | Found Exp. Signal Interpreter 17342 | -3/Research | Identified exit to Research 17347 | -3/Research | Discovered exit to Research (range 13) 17390 | -3/Research | Entered Quarantine 17411 | -3/Quarantine | Found Alien Artifact 17425 | -3/Quarantine | Spotted Alpha 7 17469 | -3/Quarantine | Found Alien Artifact 17478 | -3/Quarantine | Identified Subatomic Replicator 17478 | -3/Quarantine | Identified Terrabomb 17491 | -3/Quarantine | Build established: Scout 17597 | -3/Quarantine | Discovered exit to Research (range 11) 17598 | -3/Quarantine | Found Spectral Analyzer 17612 | -3/Quarantine | Entered Research 17612 | -2/Research | Evolved 2 slots: Utility x2 17613 | -2/Research | Identified exit to Access 17643 | -2/Research | Spotted B-90 Cyclops 17751 | -2/Research | Spotted B-90 Cyclops 17756 | -2/Research | Loaded intel: 5 recycling unit locations 17793 | -2/Research | Spotted B-90 Cyclops 17802 | -2/Research | Spotted B-90 Cyclops 17827 | -2/Research | Identified exit to Testing 17831 | -2/Research | Discovered exit to Access (range 22) 17837 | -2/Research | Entered Testing 17853 | -2/Testing | Found Prototype Ballistic Gun 17853 | -2/Testing | Identified Hyp. Multirail 17854 | -2/Testing | Discovered exit to Access (range 23) 17898 | -2/Testing | Scanned by Researcher 17931 | -2/Testing | Found Prototype Launcher 17931 | -2/Testing | Identified Z-bomb Delivery System 17979 | -2/Testing | Found Prototype Hackware 17979 | -2/Testing | Identified System Mapper 17996 | -2/Testing | Found Prototype Processor 17996 | -2/Testing | Identified Exp. Core Analyzer 17998 | -2/Testing | Found Exp. Core Analyzer 18015 | -2/Testing | Found Prototype Energy Cannon 18142 | -2/Testing | Found Prototype Protection 18200 | -2/Testing | Spotted Fortress 18211 | -2/Testing | Discovered new exit (range 6) 18211 | -2/Testing | Discovered new exit (range 6) 18211 | -2/Testing | Identified exit to Protoforge 18212 | -2/Testing | Entered Protoforge 18254 | -2/Protoforge | Spotted Hotshot 18254 | -2/Protoforge | Spotted Hotshot 18274 | -2/Protoforge | Identified Potential Cannon 18274 | -2/Protoforge | Identified Hvy. Regenerative Plating 18326 | -2/Protoforge | Spotted Hotshot 18332 | -2/Protoforge | Destroyed Hotshot 18333 | -2/Protoforge | Spotted Hotshot 18334 | -2/Protoforge | Destroyed Hotshot 18357 | -2/Protoforge | Destroyed Hotshot 18362 | -2/Protoforge | Lost 4 parts (2n2u) 18367 | -2/Protoforge | Destroyed Hotshot 18405 | -2/Protoforge | Spotted Overlord 18425 | -2/Protoforge | Destroyed 9 combat bots 18451 | -2/Protoforge | Spotted AP7-3 18495 | -2/Protoforge | Found Prototype Storage 18495 | -2/Protoforge | Identified Cep. Chromion Battery 18498 | -2/Protoforge | Found Prototype Storage 18498 | -2/Protoforge | Identified Cep. NT7 Matterbank 18525 | -2/Protoforge | Found Prototype Device 18525 | -2/Protoforge | Identified Crosscalibrator 18532 | -2/Protoforge | Spotted Immortal 18532 | -2/Protoforge | Spotted Immortal 18540 | -2/Protoforge | Spotted Decapitator 18540 | -2/Protoforge | Spotted Decapitator 18547 | -2/Protoforge | Superfortress began startup sequence 18556 | -2/Protoforge | Destroyed Decapitator 18652 | -2/Protoforge | Destroyed Decapitator 18694 | -2/Protoforge | Found Exp. Terror Saw 18748 | -2/Protoforge | Destroyed Immortal 18753 | -2/Protoforge | Found Prototype Device 18753 | -2/Protoforge | Identified Cep. Antimissile System 18755 | -2/Protoforge | Found Prototype Device 18755 | -2/Protoforge | Identified Exp. Cloaking Device 18764 | -2/Protoforge | Core integrity fell below 50% 18802 | -2/Protoforge | Spotted Hotshot 18807 | -2/Protoforge | Spotted EXE-6 18807 | -2/Protoforge | Spotted EXE-6 18810 | -2/Protoforge | Spotted Decapitator 18811 | -2/Protoforge | Spotted Decapitator 18816 | -2/Protoforge | UFD initiated attack on Protoforge 18816 | -2/Protoforge | Loaded intel: 3 recycling unit locations 18823 | -2/Protoforge | Lost 5 parts (1p3n1u) 18837 | -2/Protoforge | Found Exp. Core Analyzer 18844 | -2/Protoforge | Found Prototype Ballistic Gun 18844 | -2/Protoforge | Identified Cep. XC Strikerail 18852 | -2/Protoforge | Optimus greeted in Protoforge 18853 | -2/Protoforge | Found Cep. XC Strikerail 18862 | -2/Protoforge | Found Exp. Kinecellerator 18870 | -2/Protoforge | Found Prototype Processor 18870 | -2/Protoforge | Identified Exp. Armor Integrity Analyzer 19041 | -2/Protoforge | Spotted AP7-3 19044 | -2/Protoforge | Spotted Striker 19049 | -2/Protoforge | Spotted Striker 19075 | -2/Protoforge | Destroyed AP7-3 19121 | -2/Protoforge | Lost 13 allies 19128 | -2/Protoforge | Found Prototype Processor 19128 | -2/Protoforge | Identified Exp. Target Analyzer 19135 | -2/Protoforge | Destroyed 7 combat bots 19158 | -2/Protoforge | Build established: Scavenger-Mutant 19188 | -2/Protoforge | Spotted Executioner 19191 | -2/Protoforge | Spotted Striker 19195 | -2/Protoforge | System corruption reached 10% 19200 | -2/Protoforge | Destroyed Striker 19215 | -2/Protoforge | Destroyed Executioner 19239 | -2/Protoforge | UFD reported confirmed Drillbomb installation 19259 | -2/Protoforge | Spotted Executioner 19447 | -2/Protoforge | Lost 5 allies 19463 | -2/Protoforge | Spotted Striker 19463 | -2/Protoforge | Spotted Striker 19471 | -2/Protoforge | Spotted Immortal 19472 | -2/Protoforge | Spotted Executioner 19472 | -2/Protoforge | Spotted Executioner 19478 | -2/Protoforge | Core integrity fell below 20% 19480 | -2/Protoforge | Spotted Hotshot 19482 | -2/Protoforge | Destroyed Striker 19507 | -2/Protoforge | Lost 4 allies 19511 | -2/Protoforge | P-80 Master assimilated allied 02F10-K 19511 | -2/Protoforge | Spotted 02F10-K 19609 | -2/Protoforge | Spotted Executioner 19615 | -2/Protoforge | Found Exp. Core Analyzer 19645 | -2/Protoforge | Additional patrols dispatched to research labs 19648 | -2/Protoforge | Crushed by falling debris 19688 | -2/Protoforge | Spotted Executioner 19688 | -2/Protoforge | Spotted Executioner 19688 | -2/Protoforge | Spotted Executioner 19688 | -2/Protoforge | Spotted Executioner 19689 | -2/Protoforge | Destroyed by Executioner with Helical Railgun Last Messages --------------- 19660_ Imp. Quantum Reactor destroyed. 19660_ Slammed into G-73 Enforcer. 19665_ Penetrated by Slug. 19665_ Slug penetrates Earth. 19668_ System corrupted: Component data lost. 19668_ Critical hit (Burn: +37). 19675_ The unstable cave ceiling collapses. 19675_ Executioner crushed by falling debris. 19678_ The unstable cave ceiling collapses. 19679_ G-73 Enforcer crushed by falling debris. 19680_ Kicked G-73 Enforcer. 19681_ Penetrated by Slug. 19682_ Kicked G-73 Enforcer out of the way. 19683_ System corrupted: Exp. Heat Sink rejected. 19683_ Acquired Exp. Heat Sink. 19684_ Biometal Leg destroyed. 19685_ Kicked G-73 Enforcer out of the way. 19688_ Penetrated by Slug. 19689_ Slug penetrates Earth. 19689_ Exp. Biometal Leg destroyed. Map ----- +----------------------------------------------------+ | ?????????????????????????????????????????????????? | | ?????????????????????????????????????????????????? | | ?????????????????????????????????????????????????? | | ?????????????????????????????????????????????????? | | ?????????????????????????????????????????????????? | | ?#???????????????????????????????????????????????? | | #???????????????????????????????????????????????? | | #???????????????????????????????????????????????? | | #???????????????????????????????????????????????? | | #???????????????????????????????????????????????? | | #???????????????????????????????????????????????? | | #???????????????????????????????????????????????? | | ##???????????????????????????????????????????????? | | ?????????????????????????????????????????????????? | | ?????????????????????????????????????????????????? | | ??????????????????????#####??????????????????????? | | ??????????????????????# #??????????????????????? | | ???????????????????#?### ###?????????????????????? | | ###????????????????# # # #?????????????????????? | | ###????????????????? # #?????????????????????? | | "##????????????????? ### ####???????????????????? | | ##?#######?????????# ## #???????????????????? | | ##?#######???####### # # ####??????????????????? | | ##### """#???#" " ## #### ## #??????????????????? | | #####!!!! #### #;;##;#;# ####????????????????? | | E % @g; #????????????????? | | CE ! = ;#####????????????????? | | % & E *% != % ! ; #???????????????????? | | C E% % % ; ??????????????????? | | % % % %;####?????????????????? | | % n%& % % % % ##????????????????????? | | =###; //// ;;;;==& ;;;;#%% #?????????????????????? | | " ; ## ""; ; % ##????????????????????? | | ;;; ;#??####### ; % ;#????????????????????? | | " ####?????????## # %##????????????????????? | | "" ####??????????### ;#????????????????????? | | # #???????????# ##????????????????????? | | ???????????# ;#????????????????????? | | ? ? ???????????# %##????????????????????? | | ?? ################ ####################### | | ???# ?# | | ????# # "" " | | ????# ## % " "" "" """ " | | ????# " "" """ """" " "" | | ????# # "" """" """ " """ "" " | | ????#??# "" " "" """ | | ???????# % " """ "% % "" | | #??????# "" "" """" " " | | #??????# " "" " % " " | | #??????# " "" " "" % % "" " | +----------------------------------------------------+ Best States ------------- Heat Dissipation 100 Energy Generation 53 Energy Capacity 2700 Matter Stores 300 Matter Capacity 300 Sight Range 24 Robot Scan Range 18 Terrain Scan Range 24 Terrain Scan Density 210 ECM Strength 1 Jamming Range 16 Cloak Strength 4 Additional Mass Support 16 Armor Coverage 900 Weapon Shielding 90 Melee Speed Boost 30 Evasion (%) 80 Targeting Accuracy 16 Melee Accuracy 24 Target Analysis 10 Core Analysis 12 Armor Integrity Analysis 50 Recoil Reduction 4 Kinecelleration 66 Offensive Hacking 34 Defensive Hacking 14 Trap Extractor Capacity 8 Item Schematics ----------------- Exp. Flexi-carbon Leg | -7/Factory | Scanalyzed CPS Tube | -5/Factory | Scanalyzed Hellfire Missile Launcher | -2/Testing | Archive Hds. Centrium Leg | -2/Testing | Archive Exp. Biometal Leg | -2/Testing | Archive Com. Linear Accelerator | -2/Testing | Archive Point Singularity Launcher | -2/Testing | Archive Helical Railgun | -2/Testing | Archive Com. Particle Reactor | -2/Testing | Archive Cld. Antigrav System | -2/Testing | Archive Robot Schematics ------------------ H-88 Terminator | -2/Testing | Archive R-10 Processor | -2/Testing | Archive Fabricated ------------ Hyp. Gauss Cannon | x2 | -7/Factory | Preloaded Adv. Sensor Array | x2 | -7/Factory | Preloaded Adv. Trap Extractor | x2 | -7/Factory | Preloaded Repaired ---------- Nothing Alien Tech Used ----------------- None Achievements -------------- None Challenges ------------ None Game ------ Seed GyrokineticSpectralBiocell Manual? 0 Play Time 05:30:35 Cumulative 689.2 hours Start 2025.05.10 @ 14:11:16 End 2025.05.10 @ 20:48:58 Sessions 1 Manual Loads 0 Difficulty Rogue Special Mode None Game No. 230 Rogue 228 Adventurer 2 Explorer 0 Win Type - Total 37 Types 13/3/11/1/1/0/7/1/0/0 Lore% 94 Gallery% 91 Achievement% 82 Wizard Run 0 Options --------- Layout 0 ASCII 0 Keyboard 1 Movement Numpad Keybinds 0 Fullscreen 1 Font 24/Smallcaps Map View 76x50 Zoom Use 0% Tactical HUD 1 Map Filters NONE Filters NONE Steam 1 RUN: ba364ec2-e448-494a-adda-918c60d961d6